Cogmind - Beta 17 @@@ ROGUE MODE // 2026.06.29 @ 23:07:24 Player: szymekc Result: Establishing 0b11! Performance ------------- Evolutions (9) 4500 Regions Visited (25) 5000 Robots Destroyed (434) 2170 Value Destroyed (25190) 25190 Prototype IDs (399) 7980 Alien Tech Used (7) 1400 Bonus (91092) 91092 TOTAL SCORE: 137332 Bonus ------- Triggered High Security 500 High Alert Combat Kills 8000 Follower Combat Kills 1837 Prayed to X0-1V1 5000 Major X0-1V1 Interference 28300 Forged Quantum Companion 2000 Registered with UFD 300 Met Optimus in HQ 500 Met Zhirov 300 Met Warlord at Base 500 MAIN.C Attacked Warlord 500 Warlord Defense Kills 414 Scanned by Researcher 500 Recovered Sigix Corpse 2000 Destroyed MAIN.C Guards 500 Met MAIN.C 5000 Destroyed MAIN.C Shell 5000 Destroyed MAIN.C 10000 Met Architect 300 Destroyed A8 300 Destroyed A6 400 Destroyed A5 500 Destroyed A4 700 Destroyed A3 800 Destroyed A2 1000 Destroyed Architect 15000 Win 3000 Friendly Fire -2059 Cogmind --------- Core Integrity 883/1650 Matter 250/300 Energy 1025/1360 System Corruption 6% Temperature Cool (7) Movement Hovering (58) Ox1 Location 0b11 Command Parts ------- > --- POWER (3) -------- Concept Zero-point Core (fused) Concept Zero-point Core Concept Zero-point Core > --- PROPULSION (7) --- Concept Gyrokinetic System Concept Gyrokinetic System Concept Gyrokinetic System Concept Gyrokinetic System Concept Gyrokinetic System Concept Gyrokinetic System Concept Gyrokinetic System > --- UTILITY (13) ----- Concept Antigrav Storage Unit ST Field Compressor Experimental Optical Array Concept Weapon Articulator Experimental Core Analyzer Experimental Armor Integrity Analyzer Femtoactuators Experimental Reaction Control System Advanced Phase Shifter Heavy Regenerative Plating Thermal Barrier Concept Energy Mantle > --- WEAPON (2) ------- H3-MLN's Flail Superquantum Companion > --- INVENTORY (25) --- Zero-point Reactor Concept Zero-point Core Cooled Linear Gravjet Cooled Linear Gravjet Cooled Linear Gravjet Concept Combat Aerolev Unit Concept Combat Aerolev Unit Concept Gyrokinetic System Experimental Energy Well (600) Advanced Quantum Shading Machine Femtoactuators Experimental Transmission Jammer Advanced Reaction Control System Advanced Phase Shifter Graphene Brace Advanced Focal Shield Advanced Force Field Concept Energy Mantle Improved Matter Neutralizer Sigix Corpse Peak State ------------ > --- POWER ------------ Concept Zero-point Core Concept Zero-point Core Concept Zero-point Core > --- PROPULSION ------- Concept Gyrokinetic System Concept Gyrokinetic System Concept Gyrokinetic System Concept Gyrokinetic System Concept Gyrokinetic System Concept Gyrokinetic System Concept Gyrokinetic System > --- UTILITY ---------- Concept Antigrav Storage Unit Experimental Optical Array Concept Melee Reflex Suite Concept Weapon Articulator Experimental Core Analyzer Experimental Armor Integrity Analyzer Advanced Transmission Jammer Concept Cloak Mesh Concept Cloak Mesh Centrium Heavy Armor Plating Experimental EM Shield Concept Energy Mantle > --- WEAPON ----------- Chaos Jack Superquantum Companion > --- INVENTORY -------- Concept Zero-point Core Concept Combat Aerolev Unit Concept Combat Aerolev Unit Concept Combat Aerolev Unit Concept Gyrokinetic System Concept Phasing Heat Sink Long-range IFF Parser Concept Melee Reflex Suite Femtoactuators Femtoactuators Advanced Reaction Control System Experimental Reaction Control System Experimental Reaction Control System Graphene Brace Advanced Focal Shield Advanced Focal Shield Advanced Force Field Concept Energy Mantle Concept Antimissile System Crosscalibrator Transdimensional Reconstructor Transdimensional Reconstructor H3-MLN's Flail Sigix Broadsword [Rating: 311] Favorites ----------- Power Concept Zero-point Core Engine Subdweller Power Source Power Core Concept Zero-point Core Reactor Zero-point Reactor Propulsion Concept Gyrokinetic System Treads Light Treads Leg Flexi-carbon Leg Wheel Subdweller Monowheel Hover Unit Concept Gyrokinetic System Flight Unit Cooled Cesium-ion Thruster Utility X0-1V1's Piety Tracker Device X0-1V1's Piety Tracker Storage Large Storage Unit Processor Experimental Core Analyzer Hackware Improved Hacking Suite Protection Centrium Heavy Armor Plating Artifact Phase Redirector Weapon Companion Sword Energy Gun Particle Gun Energy Cannon Subdweller Beam Cannon Ballistic Gun Light Assault Rifle Ballistic Cannon Assault Cannon Launcher Grenade Launcher Special Weapon Mining Laser Impact Weapon H3-MLN's Flail Slashing Weapon Companion Sword Piercing Weapon Makeshift Spear Special Melee Weapon Chaos Jack Build | -11 -10 -10 -10 -7 -7 -5 -5 -5 -5 -5 -5 -4 -4 -4 -4 -4 -3 -3 -3 -2 -2 -2 -1 -1 -1 ------- Run | Yrd Mat Min Sub Rec Scr Fac Was Fac Upp Upp War Pro Fac Upp Upp Zhi Pro Res Tes Res Qua Frg Acc Com Ac0 Slots Evolved 18 | . . . . . . 10 . . . . . . 2 . . . . 2 . 2 . . 2 . . Power 1 | . . . . . . . . . . . . . . . . . . . . . . . 1 . . Propulsion 6 | . . . . . . 5 . . . . . . . . . . . 1 . . . . . . . Utility 11 | . . . . . . 5 . . . . . . 2 . . . . 1 . 2 . . 1 . . Weapon . | . . . . . . . . . . . . . . . . . . . . . . . . . . Parts Attached 384 | 7 5 15 15 2 3 60 2 40 1 3 20 5 25 . 3 2 . 18 30 19 17 58 12 10 12 Power 57 | 1 . 6 4 1 1 16 2 6 . . 3 . 6 . . . . . 4 1 . 5 1 . . Engine 21 | 1 . 6 4 1 . 6 . . . . . . 3 . . . . . . . . . . . . Core 22 | . . . . . 1 10 . 6 . . 1 . . . . . . . . . . 3 1 . . Reactor 14 | . . . . . . . 2 . . . 2 . 3 . . . . . 4 1 . 2 . . . Propulsion 104 | 2 1 1 4 . 1 23 . 17 . 2 8 2 7 . . . . 4 4 4 4 15 3 . 2 Treads 11 | 2 1 1 3 . . 2 . 1 . 1 . . . . . . . . . . . . . . . Leg 4 | . . . . . . 1 . 2 . 1 . . . . . . . . . . . . . . . Wheel 2 | . . . 1 . 1 . . . . . . . . . . . . . . . . . . . . Hover 58 | . . . . . . 8 . 7 . . 1 . 7 . . . . 4 4 4 3 15 3 . 2 Flight 29 | . . . . . . 12 . 7 . . 7 2 . . . . . . . . 1 . . . . Utility 195 | 2 3 2 4 . . 21 . 17 1 1 5 3 12 . 3 2 . 14 21 13 11 33 8 10 9 Device 127 | 2 1 2 4 . . 12 . 9 1 . 3 2 8 . 2 1 . 8 14 8 9 25 5 6 5 Storage 11 | . 2 . . . . 1 . 2 . . 1 . 1 . . . . . 1 1 . 1 . 1 . Processor 18 | . . . . . . 5 . 1 . . . 1 2 . . . . . 2 3 . 3 . 1 . Hackware 5 | . . . . . . . . 1 . . . . . . . . . 2 . 1 . . . . 1 Protection 33 | . . . . . . 3 . 4 . 1 1 . 1 . 1 1 . 4 4 . 1 4 3 2 3 Artifact 1 | . . . . . . . . . . . . . . . . . . . . . 1 . . . . Weapon 28 | 2 1 6 3 1 1 . . . . . 4 . . . . . . . 1 1 2 5 . . 1 Energy Gun 4 | . . 1 . . . . . . . . 1 . . . . . . . . . . 2 . . . Energy Cannon 5 | . . . 1 . . . . . . . 2 . . . . . . . . 1 . 1 . . . Ballistic Gun 6 | 2 . 2 1 . . . . . . . . . . . . . . . . . . . . . 1 Ballistic Cannon 1 | . . 1 . . . . . . . . . . . . . . . . . . . . . . . Launcher 1 | . . 1 . . . . . . . . . . . . . . . . . . . . . . . Special Weapon 1 | . 1 . . . . . . . . . . . . . . . . . . . . . . . . Impact Weapon 4 | . . 1 1 . . . . . . . 1 . . . . . . . . . . 1 . . . Slashing Weapon 4 | . . . . . 1 . . . . . . . . . . . . . 1 . 1 1 . . . Piercing Weapon 1 | . . . . 1 . . . . . . . . . . . . . . . . . . . . . Special Melee Weapon 1 | . . . . . . . . . . . . . . . . . . . . . 1 . . . . Unidentified Prototypes 76 | . 1 . 1 . 1 8 . 2 . . 9 3 1 . . 3 . . 13 2 6 19 . 3 4 Corrupted Parts 2 | . . . . . . . . . . . . . . . . . . . . 2 . . . . . System Corruption 13 | . . . . . . . . . . . . . . . . . . . . 13 . . . . . Parts Lost 87 | . . 3 1 . . 12 . 28 . . 2 2 8 . 1 . . 1 4 8 1 7 2 2 5 Power 16 | . . 1 . . . 4 . 3 . . . 1 2 . . . . . 1 1 1 2 . . . Propulsion 30 | . . . . . . 4 . 18 . . 2 . . . . . . . . 3 . 3 . . . Utility 40 | . . 2 1 . . 4 . 7 . . . 1 6 . 1 . . 1 3 4 . 2 2 2 4 Weapon 1 | . . . . . . . . . . . . . . . . . . . . . . . . . 1 Highest Loss Streak 10 | . . 1 1 . . 5 . 10 . . 1 1 3 . 1 . . 1 2 3 1 4 1 1 2 To Critical Strikes 2 | . . . . . . . . 1 . . . . . . . . . . 1 . . . . . . Average Backups 12 | 1 8 14 14 14 10 8 9 10 7 7 7 8 8 8 8 8 9 9 8 11 13 17 22 24 23 Power 1 | . 1 1 1 2 1 . 2 1 . . . 1 . 2 1 1 2 1 1 2 2 1 1 1 2 Propulsion 3 | . 4 6 5 3 1 1 . . 1 1 2 3 5 3 4 3 3 1 . 1 2 3 4 3 6 Utility 4 | . 2 3 1 1 2 3 5 6 5 5 3 3 1 2 2 2 2 3 3 4 4 9 14 16 12 Weapon 1 | . 1 3 4 6 2 . . . . . . . . . . . . . . . 1 1 . . . Tool/Special . | . . . . . . . . . . . . . . . . . . . . . . . . . . Unused Backups 139 | . 1 . 24 2 12 25 1 9 . . 8 1 2 2 . . . 6 4 . 8 13 . 13 8 Power 18 | . . . 4 . . 2 . . . . . . 1 1 . . . 2 . . 1 4 . 2 1 Propulsion 39 | . . . 4 . . 8 . 3 . . 2 1 1 1 . . . . 1 . 5 4 . 7 2 Utility 28 | . 1 . 3 . 1 4 . 4 . . 4 . . . . . . 1 . . 1 1 . 4 4 Weapon 49 | . . . 13 2 9 10 1 1 . . 2 . . . . . . 3 3 . . 4 . . 1 Tool/Special 5 | . . . . . 2 1 . 1 . . . . . . . . . . . . 1 . . . . Average Slot Usage (%) 89 | . 100 98 99 100 82 88 94 79 50 57 78 83 78 86 91 94 94 93 90 88 96 95 95 95 91 Engine 8 | . 14 24 27 26 7 2 . . . . 4 . 3 . . . . . . . . . . . . Core 3 | . . . . 1 4 6 8 6 . . 1 5 . . . . . . . . . 4 11 12 11 Reactor 1 | . . . . . . . 1 2 . . . 4 5 4 5 5 5 4 4 7 8 3 . . . Treads 7 | . 28 26 13 . 11 5 . . . 2 . . . . . . . . . . . . . . . Hover 12 | . . . . . . 11 . 6 5 5 5 . 3 34 31 31 31 33 35 28 30 29 27 28 27 Flight 3 | . . . . . . 13 35 21 5 2 18 25 17 . . . . . . . . . . . . Device 21 | . 15 11 24 28 28 17 17 12 15 11 12 17 19 20 28 26 26 25 28 19 21 23 23 20 23 Storage 8 | . 12 12 13 14 13 3 5 5 5 5 5 5 4 4 5 5 5 4 4 3 4 4 3 4 3 Processor 7 | . . . . . . 11 11 11 11 11 11 11 10 9 10 10 10 5 5 17 17 15 15 15 13 Protection 2 | . . . . . . 4 5 3 . 4 4 4 6 4 5 10 10 6 4 4 5 4 3 6 6 Ballistic Gun 2 | . 27 17 2 7 . . . . . . . . . . . . . . . . . . . . . Ballistic Cannon 1 | . . 2 9 . . . . . . . . . . . . . . . . . . . . . . Slashing Weapon 4 | . . . . . 11 5 5 5 5 5 4 5 4 4 5 5 5 4 3 3 4 3 3 4 3 Peak Build Rating 311 | 9 20 25 37 31 32 100 99 108 62 75 125 137 154 146 152 152 159 179 189 203 210 282 311 305 307 Average Rating 110 | 6 11 22 26 30 29 77 93 83 59 63 94 126 137 145 150 151 153 171 180 196 200 237 301 296 289 On Entrance 120 | . 9 20 24 31 31 32 92 99 44 62 67 121 131 150 140 152 152 159 179 180 188 203 282 296 295 Avg Prop Armor Cover (%) 6 | . . . . . 28 6 . 4 1 11 4 . . . . . . . . . . . . . . Naked Turns . | . . . . . . . . . . . . . . . . . . . . . . . . . . Heaviest Build 113 | 9 28 41 40 35 36 55 47 45 15 22 41 41 70 68 79 79 79 88 90 96 95 101 109 111 113 Greatest Support 131 | 40 40 40 40 20 20 80 48 55 25 56 56 57 91 90 104 80 80 120 131 111 107 112 112 112 112 Greatest Overweight (x) 5 | . . 1 1 1 1 1 . 5 1 1 3 . . . . . . . . 1 1 1 . . 1 Average Overweight (x) . | . . . . 1 1 . . . . . . . . . . . . . . . . . . . . Largest Inventory Capacity 25 | 5 15 15 15 15 15 15 15 15 10 10 10 10 10 10 10 10 10 10 10 15 15 25 25 25 25 Average Capacity 14 | 5 11 15 14 15 14 12 15 12 10 10 10 10 10 10 10 10 10 10 10 13 15 19 25 25 25 Most Carried 25 | 2 15 15 15 15 15 15 15 15 10 10 10 10 10 10 10 10 10 10 10 15 15 25 25 25 25 Average Carried 13 | 1 8 14 14 14 11 10 12 11 9 9 9 9 9 9 10 9 10 9 9 11 14 18 23 24 23 Final Capacity 25 | 5 15 15 15 15 15 15 15 10 10 10 10 10 10 10 10 10 10 10 10 15 15 25 25 25 25 Final Carried 25 | 2 15 15 15 15 15 12 15 10 10 9 10 10 10 10 10 10 10 10 10 11 15 25 24 24 20 Transmogrified Parts 1 | . . . 1 . . . . . . . . . . . . . . . . . . . . . . Class Distribution -------------------- 52% | Mutant 25% | Scavenger-Mutant 9% | Sprinter 7% | Scavenger-Sprinter Dominant Class ---------------- Mutant | -10/Materials Mutant | -10/Mines Mutant | -10/Subcaves Scavenger-Mutant | -7/Recycling Mutant | -7/Scraptown Mutant | -5/Factory Sprinter | -5/Waste Sprinter | -5/Factory Mutant | -5/Upper Caves Mutant | -5/Upper Caves Commander-Sprinter | -5/Warlord Scavenger-Mutant | -4/Proximity Caves Scavenger-Scout | -4/Factory Sprinter | -4/Upper Caves Mutant | -4/Upper Caves Mutant | -4/Zhirov Mutant | -3/Proximity Caves Sprinter | -3/Research Sprinter | -3/Testing Scavenger-Mutant | -2/Research Scavenger-Mutant | -2/Quarantine Scavenger-Mutant | -2/Protoforge Scavenger-Mutant | -1/Access Scavenger-Mutant | -1/Command Scavenger-Sprinter | -1/Access_0 Resources | -11 -10 -10 -10 -7 -7 -5 -5 -5 -5 -5 -5 -4 -4 -4 -4 -4 -3 -3 -3 -2 -2 -2 -1 -1 -1 ----------- Run | Yrd Mat Min Sub Rec Scr Fac Was Fac Upp Upp War Pro Fac Upp Upp Zhi Pro Res Tes Res Qua Frg Acc Com Ac0 Matter Collected 14626 | 294 199 571 1583 62 48 1371 430 710 30 40 960 354 165 94 49 73 . 895 763 1058 382 2183 727 1300 285 Remotely . | . . . . . . . . . . . . . . . . . . . . . . . . . . Salvage Created 28937 | 129 341 553 287 10 32 2603 127 3117 153 78 248 260 1277 57 77 465 419 1089 2069 1376 2094 3915 2598 1579 3984 Parts 1359 | 6 27 43 20 1 4 86 3 118 6 1 22 9 47 2 7 5 15 47 127 88 103 261 119 32 160 Haulers Intercepted 16 | . 2 . . . . 10 . 2 . . . . . . . . . . 1 . 1 . . . . Recyclers Shooed 5 | . 2 . . . . 1 . . . . . . 2 . . . . . . . . . . . . Parts Field Recycled . | . . . . . . . . . . . . . . . . . . . . . . . . . . Retrieved Matter . | . . . . . . . . . . . . . . . . . . . . . . . . . . Parts Self-Destructed 54 | . . . 14 . . . . . . 5 . 8 . . 7 4 16 . . . . . . . . Prevented 5 | . . . . . . . . . . 3 . . . . . . 2 . . . . . . . . Parts Restored 7 | . . . . . . . . . . . . . . . . . . . . . . 6 . 1 . Faulty 7 | . . . . . . . . . . . . . . . . . . . . . . 6 . 1 . Kills | -11 -10 -10 -10 -7 -7 -5 -5 -5 -5 -5 -5 -4 -4 -4 -4 -4 -3 -3 -3 -2 -2 -2 -1 -1 -1 ------- Run | Yrd Mat Min Sub Rec Scr Fac Was Fac Upp Upp War Pro Fac Upp Upp Zhi Pro Res Tes Res Qua Frg Acc Com Ac0 Combat Hostiles Destroyed 327 | . 8 23 5 . . 26 . 27 . 1 4 5 8 . 1 . 8 9 20 21 21 56 33 8 43 Melee 259 | . . . . . . 26 . 27 . 1 4 5 8 . 1 . 8 6 18 19 19 49 27 6 35 Guns 22 | . 8 14 . . . . . . . . . . . . . . . . . . . . . . . Cannons 25 | . . 5 5 . . . . . . . . . . . . . . 1 2 2 1 4 4 . 1 AOE 4 | . . 4 . . . . . . . . . . . . . . . . . . . . . . . Classes Destroyed 36 | 2 4 1 4 . . 4 . 3 2 . 1 . 1 . 1 . . 1 2 3 . 3 4 . . Worker 12 | . . . . . . 2 . 4 . . . . 3 . . . . . 1 . 2 . . . . Builder 8 | . . . . . . . . . . . . . 1 . . . . . 3 1 2 . 1 . . Tunneler 4 | 2 . 1 . . . . . 1 . . . . . . . . . . . . . . . . . Hauler 16 | . 2 . . . . 10 . 2 . . . . . . . . . . 1 . 1 . . . . Recycler 20 | 1 . . . . . 2 . 9 . . . . 5 . . . . 1 . 1 1 . . . . Carrier 2 | . . . . . . . . . . . . . . . . . . 1 . . . . 1 . . Minesweeper 1 | . . . . . . . . . . . . . . . 1 . . . . . . . . . . Mechanic 2 | . . . . . . . . 1 . . . . . . . . . . 1 . . . . . . Operator 12 | . 1 . . . . . . . . . . . . . . . . 5 1 . 4 . 1 . . Drone 18 | . . . . . . . . . . . . . . . . . . . . 3 . 6 9 . . Turret 2 | . . . 2 . . . . . . . . . . . . . . . . . . . . . . Watcher 21 | . . . . . . 1 . 4 . . . . . . . . . 1 2 1 . 1 10 1 . Swarmer 53 | . 4 11 1 . . 13 . 5 . . . 5 . . . . 5 . . 6 . 3 . . . Cutter 4 | . . . . . . . . 1 . . . . . . . . . . . . . . 3 . . Grunt 67 | . 4 10 . . . 9 . 11 . 1 . . 3 . . . 3 3 6 . 7 4 6 . . Protector 3 | . . . . . . . . . . . 3 . . . . . . . . . . . . . . Researcher 11 | . . . . . . . . . . . . . . . . . . . 6 . 3 2 . . . Sentry 23 | . . 2 1 . . 2 . . . . . . . . . . . 2 . . . 13 2 1 . Demolisher 4 | . . . . . . . . . . . . . . . . . . . . . . . 4 . . Specialist 6 | . . . . . . . . . . . . . . . . . . . 1 . 3 . . . 2 Hunter 14 | . . . . . . . . 2 . . 1 . 3 . . . . . 2 2 3 . 1 . . Programmer 43 | . . . . . . 2 . 7 . . . . 2 . 1 . . 4 10 7 5 4 1 . . Q-Series 3 | . . . . . . . . . . . . . . . . . . . . 1 . . 2 . . Behemoth 1 | . . . . . . . . . . . . . . . . . . . . . . . 1 . . M Guard 2 | . . . . . . . . . . . . . . . . . . . . . . . . 2 . Enhanced Grunt 29 | . . . . . . . . . . . . . . . . 2 . . . . . . . . 27 Enhanced Sentry 2 | . . . . . . . . . . . . . . . . . . . . . . . . . 2 Enhanced Hunter 5 | . . . . . . . . . . . . . . . . . . . . . . . . . 5 Hotshot 3 | . . . . . . . . . . . . . . . . . . . . . . 3 . . . Decapitator 8 | . . . . . . . . . . . . . . . . . . . . . . 8 . . . Immortal 1 | . . . . . . . . . . . . . . . . . . . . . . 1 . . . Combat Programmer 2 | . . . . . . . . . . . . . . . . . . . . . . . . 2 . Striker 3 | . . . . . . . . . . . . . . . . . . . . . . . 3 . . Executioner 2 | . . . . . . . . . . . . . . . . . . . . . . . 1 1 . Alpha 7 2 | . . . . . . . . . . . . . . . . . . . . . . 2 . . . V-Series 8 | . . . . . . . . . . . . . . . . . . . . . . 8 . . . Protovariant H 1 | . . . . . . . . . . . . . . . . . . . 1 . . . . . . Artisan 1 | . . . 1 . . . . . . . . . . . . . . . . . . . . . . Subdweller 6 | . . . 5 . 1 . . . . . . . . . . . . . . . . . . . . Botcube 1 | . . . 1 . . . . . . . . . . . . . . . . . . . . . . Decomposer 3 | . . . . . . . . . 2 1 . . . . . . . . . . . . . . . Samaritan 2 | . . . . . . . . . 1 . . . . 1 . . . . . . . . . . . Wasp 3 | . . . . . . . . . . . . . . . . . . . . . 3 . . . . Thug 6 | . . . . . . . . 2 . . . . . . . . . . . . . 4 . . . Savage 1 | . . . . . . 1 . . . . . . . . . . . . . . . . . . . Fireman 2 | . . . . . . . . . . . . . . . . . . . . 2 . . . . . Mutant 1 | . . . . . . . . . 1 . . . . . . . . . . . . . . . . Best Kill Streak 12 | 2 3 5 3 . . 6 . 6 . 1 2 5 4 . 1 . 5 4 6 4 6 7 10 4 12 Combat Bots Only 12 | . 3 5 1 . . 5 . 5 . 1 2 5 3 . 1 . 5 4 5 4 6 7 10 4 12 Max Kills in Single Turn 2 | 1 1 2 1 . 1 1 . 1 1 1 1 2 1 1 1 1 1 2 2 1 2 2 2 1 1 Gunslinging 1 | . . 1 . . . . . . . . . . . . . . . . . . . . . . . Exploded 2 | . . 2 . . . . . . . . . . . . . . . . . . . . . . . Melee 2 | . . . . . . 1 . 1 . 1 1 2 1 . 1 . 1 1 2 1 2 2 2 1 1 Uniques/NPCs Destroyed 9 | . . . . . . . . . . . . . . . . . . . . . . . . 2 7 MAIN.C Shell (-1/Command) MAIN.C (-1/Command) A8 (-1/Access_0) A6 (-1/Access_0) A2 (-1/Access_0) A5 (-1/Access_0) A4 (-1/Access_0) Architect (-1/Access_0) A3 (-1/Access_0) Combat | -11 -10 -10 -10 -7 -7 -5 -5 -5 -5 -5 -5 -4 -4 -4 -4 -4 -3 -3 -3 -2 -2 -2 -1 -1 -1 -------- Run | Yrd Mat Min Sub Rec Scr Fac Was Fac Upp Upp War Pro Fac Upp Upp Zhi Pro Res Tes Res Qua Frg Acc Com Ac0 Hostile Shots Fired 2975 | . 35 100 46 15 . 177 . 328 1 6 29 42 149 . 74 3 53 117 253 237 185 446 198 67 414 Missed 1310 | . 9 27 21 8 . 78 . 93 . 3 19 25 69 . 41 2 31 70 98 84 89 151 90 29 273 Intercepted 25 | . . . . . . . . . . . . . . . . . . . . . . . 20 5 . Deflected 31 | . . . . . . . . . . . . . . . . . . . 4 7 3 13 3 1 . Hits 1665 | . 26 73 25 7 . 99 . 235 1 3 10 17 80 . 33 1 22 47 155 153 96 295 108 38 141 Melee 71 | . . . . . . . . 48 . . 4 . . . . . . . . . . 10 7 . 2 Projectile 1594 | . 26 73 25 7 . 99 . 187 1 3 6 17 80 . 33 1 22 47 155 153 96 285 101 38 139 AOE 31 | . . . 2 . . . . . . . 1 . . . . . . . . 20 . . 5 2 1 Critical Strikes 79 | . . 1 . 1 . 2 . 5 . 1 2 . 2 . 1 . 2 4 10 3 3 30 . 1 11 Actively Blocked 30 | . . . . . . . . . . . . . . . . . . . . . . 25 . . 5 Part Disruptions 10 | . . . . . . . . 1 . . . . 1 . . . . . 2 1 . 1 . 1 3 Actively Blocked 1 | . . . . . . . . . . . . . . . . . . . . . . . . . 1 Damage Taken 21891 | . 242 612 280 100 . 1682 9 3871 25 55 785 266 1264 . 320 29 242 483 1377 1572 578 4059 1013 548 2479 Core 3869 | . 76 155 110 13 . 307 9 759 25 39 179 61 127 . 68 6 52 30 236 122 162 581 99 123 530 Absorbed by Shields 9494 | . . 11 . . . . . . . . . . 81 . 320 23 231 488 964 577 577 2626 924 481 2191 Redirected to Shielding 526 | . . . . . . . . 34 . . . . . . . . . . . . 23 138 2 13 316 Ignored by Resistances 5675 | . . 181 23 2 . 99 . 128 2 5 13 . 36 . 4 6 17 43 681 1074 395 1408 347 595 616 Regen/Repaired (Parts) 2596 | . . . . . . . . . . . . . . . . . . 468 . . 778 30 . 676 644 Core Remaining (%) 81 | 100 . . . . 98 . . . . . . 73 . . . . 78 . 80 . . 85 . . 53 Volleys Fired 210 | 12 48 58 71 7 . . . . . . 12 . . . . . . . . 2 . . . . . Largest 3 | 2 2 3 1 1 . . . . . . 1 . . . . . . . . 1 . . . . . Hottest 120 | 40 100 85 80 25 . . . . . . 90 . . . . . . . . 120 . . . . . Shots Fired 316 | 24 92 97 81 8 . . . . . . 12 . . . . . . . . 2 . . . . . Gun 205 | 24 88 80 5 8 . . . . . . . . . . . . . . . . . . . . . Cannon 101 | . . 11 76 . . . . . . . 12 . . . . . . . . 2 . . . . . Launcher 6 | . . 6 . . . . . . . . . . . . . . . . . . . . . . . Special 4 | . 4 . . . . . . . . . . . . . . . . . . . . . . . . Kinetic 277 | 24 88 88 69 8 . . . . . . . . . . . . . . . . . . . . . Thermal 33 | . 4 3 12 . . . . . . . 12 . . . . . . . . 2 . . . . . Explosive 6 | . . 6 . . . . . . . . . . . . . . . . . . . . . . . Electromagnetic . | . . . . . . . . . . . . . . . . . . . . . . . . . . Robot Hit Streak 14 | 8 12 14 14 1 . . . . . . . . . . . . . . . . . . . . . Robot Miss Streak 5 | 2 5 4 3 2 . . . . . . . . . . . . . . . . . . . . . Penetration Max . | . . . . . . . . . . . . . . . . . . . . . . . . . . Secondary Targets 4 | . 1 3 . . . . . . . . . . . . . . . . . . . . . . . Max Gunslinging Chain 1 | . 1 1 . . . . . . . . . . . . . . . . . . . . . . . Autonomous 49 | . . . . . . . . . . . . . . . . . . 4 6 6 6 14 6 . 7 Shots Hit Robots 1286 | 17 54 64 27 4 1 101 5 118 4 3 10 6 50 1 9 8 18 38 87 52 51 161 98 70 229 Core Hits 600 | 6 24 39 13 2 1 45 2 55 2 3 5 5 22 1 2 6 9 15 36 23 24 86 47 28 99 Critical Kills . | . . . . . . . . . . . . . . . . . . . . . . . . . . Critical Parts Destroyed . | . . . . . . . . . . . . . . . . . . . . . . . . . . Critical Strikes 54 | . . 1 1 . . 2 . 2 . . . . 4 . . . 2 2 . 2 8 8 10 . 12 Blast 2 | . . 1 1 . . . . . . . . . . . . . . . . . . . . . . Melee Attacks 1592 | . . . 10 2 1 142 5 181 4 4 25 13 72 3 13 9 26 68 137 96 83 230 140 85 243 Impact 10 | . . . 10 . . . . . . . . . . . . . . . . . . . . . . Slashing 1560 | . . . . . . 142 5 181 4 4 21 13 71 3 13 9 26 68 135 96 83 220 138 85 243 Piercing 4 | . . . . 2 1 . . . . . . . . . . . . . . . . 1 . . . Sneak Attacks 152 | . . . 1 . 1 17 . 32 4 1 1 . 11 1 1 2 1 7 17 3 11 22 14 1 4 Combat Hostiles 22 | . . . . . . 1 . 6 . . . . . . . . . 3 1 1 . 3 5 1 1 Follow-up Attacks 51 | . . . . . . 1 . 2 . . . 1 1 . . 1 1 1 1 5 4 12 3 2 16 Martial Strikes 36 | . . . . . . . . . . . . . . . . . . . . . . 3 32 1 . Damage Inflicted 89614 | 142 449 1062 770 131 44 5219 386 6282 356 146 415 295 2574 71 451 654 950 3417 7504 4053 5465 15472 8892 6007 18407 Guns 1314 | 142 432 555 54 131 . . . . . . . . . . . . . . . . . . . . . Cannons 4907 | . . 184 612 . . . . . . . . . . . . . . 320 496 525 511 1194 500 . 565 Explosions 301 | . . 301 . . . . . . . . . . . . . . . . . . . . . . . Melee 83051 | . . . 104 . 44 5219 386 6280 356 146 415 295 2574 71 451 654 950 3097 7008 3528 4954 14278 8392 6007 17842 Ramming 41 | . 17 22 . . . . . 2 . . . . . . . . . . . . . . . . . Kinetic 1846 | 142 432 688 453 131 . . . . . . . . . . . . . . . . . . . . . Thermal 264 | . . 51 213 . . . . . . . . . . . . . . . . . . . . . . Explosive 301 | . . 301 . . . . . . . . . . . . . . . . . . . . . . . Electromagnetic . | . . . . . . . . . . . . . . . . . . . . . . . . . . Impact 104 | . . . 104 . . . . . . . . . . . . . . . . . . . . . . Slashing 82903 | . . . . . . 5219 386 6280 356 146 415 295 2574 71 451 654 950 3097 7008 3528 4954 14278 8392 6007 17842 Piercing 44 | . . . . . 44 . . . . . . . . . . . . . . . . . . . . Phasic 4111 | . . . . . . . . . . . . . . . . . . 320 496 525 511 1194 500 . 565 Highest Corruption 37 | . . 13 37 12 . 31 31 30 8 8 14 33 1 1 20 20 20 23 27 16 16 34 . . 6 Average Corruption 13 | . . 13 18 6 . 6 27 16 8 8 13 29 1 1 4 20 20 8 7 7 4 16 . . 4 Corruption Purged 1 | . . . . . . . . . . . . . . . . . . . . . 1 . . . . Corruption Blocked . | . . . . . . . . . . . . . . . . . . . . . . . . . . Effects 366 | . . 1 138 2 . 14 3 48 10 3 14 16 2 2 4 6 3 16 16 12 7 46 . . 3 Message Errors 106 | . . 1 38 1 . 5 . 12 6 . 3 3 1 1 1 2 . 1 8 7 1 13 . . 2 Matter Fused 96 | . . . 48 . . 2 . 8 . 2 3 5 . . . 2 . 4 1 1 2 18 . . . Heat Flow Errors 32 | . . . 9 1 . 1 . 5 3 . 4 1 1 . 1 . . 2 1 . . 2 . . 1 Energy Discharges 40 | . . . 18 . . 1 3 6 . 1 . 1 . 1 1 1 2 3 . 2 . . . . . Parts Rejected 4 | . . . . . . . . 3 . . . . . . . . . . . 1 . . . . . Parts Fused 2 | . . . 1 . . . . . . . . . . . . . . . . . . 1 . . . Data Loss (minor) 36 | . . . 14 . . 2 . 7 1 . 1 1 . . 1 . . 1 1 . 3 4 . . . Data Loss (major) 20 | . . . 6 . . 2 . 1 . . 2 1 . . . 1 . 2 2 . . 3 . . . Misfires 2 | . . . 2 . . . . . . . . . . . . . . . . . . . . . . Alerts 3 | . . . 1 . . . . . . . . 1 . . . . . . 1 . . . . . . Misdirections 24 | . . . . . . 1 . 6 . . 1 3 . . . . 1 3 2 1 1 5 . . . Weapon Failures 1 | . . . 1 . . . . . . . . . . . . . . . . . . . . . . Overload Shots . | . . . . . . . . . . . . . . . . . . . . . . . . . . Overflow Damage 8017 | . . 14 8 . . 380 49 456 169 . 14 38 208 . 93 109 94 535 1063 417 1276 1230 925 204 735 Projectiles 188 | . . 14 8 . . . . . . . . . . . . . . 17 3 35 18 93 . . . Explosions . | . . . . . . . . . . . . . . . . . . . . . . . . . . Melee 7829 | . . . . . . 380 49 456 169 . 14 38 208 . 93 109 94 518 1060 382 1258 1137 925 204 735 Knockbacks 7 | . . 5 2 . . . . . . . . . . . . . . . . . . . . . . Impact 1 | . . 1 . . . . . . . . . . . . . . . . . . . . . . . Kinetic 4 | . . 2 2 . . . . . . . . . . . . . . . . . . . . . . Secondary 2 | . . 2 . . . . . . . . . . . . . . . . . . . . . . . Self-Inflicted Damage 1 | . . . . . . . . 1 . . . . . . . . . . . . . . . . . Shots . | . . . . . . . . . . . . . . . . . . . . . . . . . . Rammed 10 | . 5 4 . . . . . 1 . . . . . . . . . . . . . . . . . Targets Rammed 11 | . 5 5 . . . . . 1 . . . . . . . . . . . . . . . . . Kicked . | . . . . . . . . . . . . . . . . . . . . . . . . . . Crushed 1 | . . 1 . . . . . . . . . . . . . . . . . . . . . . . Highest Temperature 762 | . 60 283 221 99 . 130 . 227 241 . 307 177 144 2 169 . . 163 199 369 . 762 4 6 301 Average Temperature 46 | . 18 83 100 60 . 29 . 106 105 . 65 36 25 1 91 . . 20 30 60 . 205 1 2 149 Received Heat Transfer 3131 | . 78 217 111 27 . 243 . 567 9 36 66 . 54 . 4 4 33 71 5 85 12 1397 28 20 64 Effects 7 | . . . 1 . . . . . . . . . . . . . . . . 3 . 3 . . . Shutdowns 2 | . . . . . . . . . . . . . . . . . . . . . . 2 . . . Energy Bleed 2 | . . . 1 . . . . . . . . . . . . . . . . . . 1 . . . Interference 2 | . . . . . . . . . . . . . . . . . . . . 2 . . . . . Matter Decay 1 | . . . . . . . . . . . . . . . . . . . . 1 . . . . . Siege Activations . | . . . . . . . . . . . . . . . . . . . . . . . . . . Martial Activations . | . . . . . . . . . . . . . . . . . . . . . . . . . . Shielding Activations . | . . . . . . . . . . . . . . . . . . . . . . . . . . Robots Disrupted 11 | . . . . . . 1 . 1 . . . . . . . . . 1 1 . 1 2 . . 4 Combat Hostiles 11 | . . . . . . 1 . 1 . . . . . . . . . 1 1 . 1 2 . . 4 Robots Corrupted . | . . . . . . . . . . . . . . . . . . . . . . . . . . Combat Hostiles . | . . . . . . . . . . . . . . . . . . . . . . . . . . Parts Fried 5 | . . . . . . . . . . . 2 . . . . . . . . 1 . . . 2 . Impact Corruptions 1 | . . 1 . . . . . . . . . . . . . . . . . . . . . . . Robots Melted . | . . . . . . . . . . . . . . . . . . . . . . . . . . Combat Hostiles . | . . . . . . . . . . . . . . . . . . . . . . . . . . Parts Melted 4 | . . 1 . . . . . . . . 1 . . . . . . 1 . . . . . 1 . Heat Transferred 389 | . . 111 278 . . . . . . . . . . . . . . . . . . . . . . Parts Sabotaged . | . . . . . . . . . . . . . . . . . . . . . . . . . . Parts Stolen 3 | . . . . . . . . 3 . . . . . . . . . . . . . . . . . Parts Stripped 213 | . . . . . . . . . . . . . . . . . . 13 8 . . 21 22 31 118 Power Chain Reactions . | . . . . . . . . . . . . . . . . . . . . . . . . . . Alert | -11 -10 -10 -10 -7 -7 -5 -5 -5 -5 -5 -5 -4 -4 -4 -4 -4 -3 -3 -3 -2 -2 -2 -1 -1 -1 ------- Run | Yrd Mat Min Sub Rec Scr Fac Was Fac Upp Upp War Pro Fac Upp Upp Zhi Pro Res Tes Res Qua Frg Acc Com Ac0 Maximum Alert Level 5 | . . 2 . 2 . 3 1 2 . . . . 1 . . . . 2 2 3 3 5 5 4 . Low Security (%) 26 | 100 100 15 . 42 . 52 . . . . . . 95 . . . . 47 8 . . . . . . Level 1 16 | . . 61 . 38 . 8 100 44 . . . . 4 . . . . 16 54 3 . . . . . Level 2 18 | . . 22 . 18 . 28 . 55 . . . . . . . . . 35 36 24 9 8 . . . Level 3 13 | . . . . . . 10 . . . . . . . . . . . . . 71 90 14 . . . Level 4 17 | . . . . . . . . . . . . . . . . . . . . . . 31 85 100 . Level 5 6 | . . . . . . . . . . . . . . . . . . . . . . 44 6 . . High Security . | . . . . . . . . . . . . . . . . . . . . . . . 7 . . Max Security . | . . . . . . . . . . . . . . . . . . . . . . . . . . Sterilizations 1 | . . . . . . 1 . . . . . . . . . . . . . . . . . . . Peak Influence 2021 | 10 95 481 . 541 . 1095 383 516 . . . . 218 . . . . 609 666 1027 994 2021 1907 1287 . Initial 1212 | . . 10 . 30 . . 383 247 . . . . 25 . . . . 131 118 356 568 535 1212 1207 . Average 601 | 1 26 316 . 206 . 294 368 391 . . . . 123 . . . . 308 395 744 845 1473 1372 1239 . Influence Increases 14767 | 15 294 924 320 571 . 1773 . 1182 . 95 677 160 743 . 50 10 285 842 1058 1287 751 2222 1071 216 221 Destroy 0b10 Robot/C 6900 | . 160 460 220 60 . 720 . 600 . 20 300 100 220 . 20 . 160 200 640 640 480 1040 680 140 40 Destroy 0b10 Robot/NC 620 | 15 15 5 . 5 . 100 . 105 . . 20 5 60 . 5 10 . 35 45 35 50 45 60 5 . Destroy Leader 880 | . 44 40 . . . 124 . 92 . . . 10 64 . 10 . 20 62 76 114 32 52 130 10 . Allied During Kill 580 | . . 28 40 3 . 30 . 29 . . 102 . 33 . . . . 3 103 166 . 3 30 . 10 Successful Hack 198 | . 11 . . . . . . . . . . . 43 . . . . 48 22 41 9 . 24 . . Disable Machine 630 | . . . . . . 15 . 15 . . . . . . . . . 15 90 15 75 285 . 15 105 Anti-Garrison Action 200 | . . . . . . . . . . . . . . . . . . . . . . 200 . . . Destroy Structure 538 | . 4 14 . 3 . 48 . 26 . . . . 16 . . . . 56 22 111 30 24 87 31 66 Partial Spotted 630 | . . . . . . 45 . 90 . . . . . . . . . 105 45 75 75 150 30 15 . Lose Combat Pursuer 1815 | . 60 15 60 . . 465 . 225 . 75 255 45 195 . 15 . 105 60 15 90 . 105 30 . . Miscellaneous 1776 | . . 362 . 500 . 226 . . . . . . 112 . . . . 258 . . . 318 . . . Influence Decreases 14696 | 15 265 503 707 113 521 678 742 1130 321 179 308 489 611 134 88 10 90 826 635 910 809 1154 1205 780 1473 Entered New Map 6357 | . . 19 234 33 521 . 712 106 151 17 . 369 15 64 8 . . 64 93 278 443 418 809 680 1323 Time Decay 5789 | 15 265 454 403 60 . 458 30 514 170 162 218 100 306 70 80 10 90 302 342 362 356 586 356 80 . Search Patrol Dispatched 100 | . . . . . . . . . . . . . . . . . . 100 . . . . . . . Lost Part 860 | . . 30 10 . . 120 . 280 . . 20 20 80 . . . . 10 40 80 10 70 20 20 50 Lost Ally 990 | . . . 60 20 . 100 . 80 . . 70 . 60 . . . . 50 160 190 . 80 20 . 100 Purge Threat 600 | . . . . . . . . 150 . . . . 150 . . . . 300 . . . . . . . Squads Dispatched 77 | . 3 4 . 1 . 7 . 13 . . . . 3 . . . . 3 7 7 7 7 14 1 . Investigation 16 | . 1 3 . . . 1 . 4 . . . . . . . . . 2 . . . 4 1 . . Extermination 25 | . . . . 1 . 2 . 4 . . . . 3 . . . . 1 3 3 3 . 4 1 . Reinforcement 24 | . 2 1 . . . 4 . 4 . . . . . . . . . . 4 1 1 3 4 . . Assault 11 | . . . . . . . . . . . . . . . . . . . . 3 3 . 5 . . Garrison 1 | . . . . . . . . 1 . . . . . . . . . . . . . . . . . Intercept . | . . . . . . . . . . . . . . . . . . . . . . . . . . Searches Triggered 1 | . . . . . . . . . . . . . . . . . . 1 . . . . . . . Construction Impeded 1 | . . . . . . 1 . . . . . . . . . . . . . . . . . . . Haulers Reinforced 8 | . . . . . . 3 . 3 . . . . . . . . . . 1 1 . . . . . Active Scanning Responses . | . . . . . . . . . . . . . . . . . . . . . . . . . . Cargo Convoy Interrupts 1 | . . . . . . . . . . . . . . . . . . . . 1 . . . . . Stealth | -11 -10 -10 -10 -7 -7 -5 -5 -5 -5 -5 -5 -4 -4 -4 -4 -4 -3 -3 -3 -2 -2 -2 -1 -1 -1 --------- Run | Yrd Mat Min Sub Rec Scr Fac Was Fac Upp Upp War Pro Fac Upp Upp Zhi Pro Res Tes Res Qua Frg Acc Com Ac0 Distress Signals 49 | . . . 1 . . 4 . 3 . . 1 . 3 . . . . 1 1 7 . 4 2 22 . Communications Jammed 35 | . . . . . . . . . . . . . . . . . . 9 13 7 . 2 4 . . Distress Signals 35 | . . . . . . . . . . . . . . . . . . 9 13 7 . 2 4 . . Times Spotted 731 | . 22 26 32 5 . 63 4 65 2 6 102 14 30 . 5 3 11 29 34 64 31 65 54 8 56 Peak Tracking Total 18 | . 3 5 6 3 . 11 2 8 3 3 18 5 8 . 3 3 5 6 5 12 6 9 11 4 7 Tactical Retreats 67 | . 3 1 3 . . 11 . 8 . 4 7 1 9 . 1 . 2 3 1 6 . 5 2 . . Traps | -11 -10 -10 -10 -7 -7 -5 -5 -5 -5 -5 -5 -4 -4 -4 -4 -4 -3 -3 -3 -2 -2 -2 -1 -1 -1 ------- Run | Yrd Mat Min Sub Rec Scr Fac Was Fac Upp Upp War Pro Fac Upp Upp Zhi Pro Res Tes Res Qua Frg Acc Com Ac0 Traps Triggered 27 | . 1 . . . . 1 . 3 . . . . . . . . . 1 4 2 1 14 . . . Indirectly . | . . . . . . . . . . . . . . . . . . . . . . . . . . Trap Hack Attempts . | . . . . . . . . . . . . . . . . . . . . . . . . . . Triggered . | . . . . . . . . . . . . . . . . . . . . . . . . . . Disarmed . | . . . . . . . . . . . . . . . . . . . . . . . . . . Reprogrammed . | . . . . . . . . . . . . . . . . . . . . . . . . . . Reused . | . . . . . . . . . . . . . . . . . . . . . . . . . . Traps Extracted . | . . . . . . . . . . . . . . . . . . . . . . . . . . Installed . | . . . . . . . . . . . . . . . . . . . . . . . . . . Triggered . | . . . . . . . . . . . . . . . . . . . . . . . . . . Most Traps Carried 1 | . . . . . 1 1 1 1 1 1 1 . . . . . . . . . . . . . . Machines | -11 -10 -10 -10 -7 -7 -5 -5 -5 -5 -5 -5 -4 -4 -4 -4 -4 -3 -3 -3 -2 -2 -2 -1 -1 -1 ---------- Run | Yrd Mat Min Sub Rec Scr Fac Was Fac Upp Upp War Pro Fac Upp Upp Zhi Pro Res Tes Res Qua Frg Acc Com Ac0 Machines Disabled 49 | . . . 3 . . 1 . 1 . . 1 . . . . 1 . 1 6 1 5 21 . 1 7 Max in Single Turn 1 | . . . 1 . . 1 . 1 . . 1 . . . . 1 . 1 1 . 1 1 . 1 1 Garrison Access 4 | . . . . . . 1 . 1 . . . . . . . . . 1 . . . 1 . . . Energy Cycler 1 | . . . . . . . . . . . . . . . . . . . . . . . 1 . . Machines Repaired . | . . . . . . . . . . . . . . . . . . . . . . . . . . Machines Dismantled . | . . . . . . . . . . . . . . . . . . . . . . . . . . Machines Sabotaged . | . . . . . . . . . . . . . . . . . . . . . . . . . . Overloaded Fab Kills . | . . . . . . . . . . . . . . . . . . . . . . . . . . Hacking | -11 -10 -10 -10 -7 -7 -5 -5 -5 -5 -5 -5 -4 -4 -4 -4 -4 -3 -3 -3 -2 -2 -2 -1 -1 -1 --------- Run | Yrd Mat Min Sub Rec Scr Fac Was Fac Upp Upp War Pro Fac Upp Upp Zhi Pro Res Tes Res Qua Frg Acc Com Ac0 Machines Accessed 94 | . 5 1 3 . 5 1 . 16 . . 2 . 8 2 . 4 . 14 3 6 9 5 8 1 1 Terminals 48 | . 5 . . . . . . 9 . . . . 4 1 . . . 6 3 5 5 1 8 1 . Fabricators 4 | . . . . . . . . 1 . . . . 2 . . . . 1 . . . . . . . Repair Stations 8 | . . . . . . . . 2 . . . . . . . . . 3 . 1 2 . . . . Recycling Units 3 | . . . . . . . . . . . . . . . . . . . . . . 3 . . . Scanalyzers 4 | . . . . . . . . . . . . . 1 . . . . 2 . . 1 . . . . Garrison Access 10 | . . . . . . 1 . 4 . . . . 1 . . . . 2 . . 1 1 . . . Total Hacks 205 | . 12 1 5 . 27 1 . 27 . . 3 . 13 5 . 17 . 31 5 8 14 7 11 1 17 Successful 122 | . 6 1 5 . 27 1 . 5 . . 3 . 6 5 . 17 . 16 2 2 4 3 1 1 17 Failed 81 | . 6 . . . . . . 22 . . . . 7 . . . . 14 3 6 9 4 10 . . Catastrophic 20 | . 2 . . . . . . 7 . . . . 2 . . . . 5 . 1 . . 3 . . Database Lockouts 2 | . . . . . . . . . . . . . . . . . . 1 . . 1 . . . . Manual 39 | . 2 . . . . . . 3 . . . . 1 . . . . 14 4 3 1 6 3 . 2 Terminals 83 | . 12 . . . . . . 16 . . . . 7 4 . . . 13 5 7 6 1 11 1 . Fabricators 7 | . . . . . . . . 2 . . . . 3 . . . . 2 . . . . . . . Repair Stations 15 | . . . . . . . . 4 . . . . . . . . . 6 . 1 4 . . . . Recycling Units 5 | . . . . . . . . . . . . . . . . . . . . . . 5 . . . Scanalyzers 13 | . . . . . . . . . . . . . 2 . . . . 8 . . 3 . . . . Garrison Access 11 | . . . . . . 1 . 5 . . . . 1 . . . . 2 . . 1 1 . . . Terminal Hacks 94 | . 6 1 5 . 27 . . 2 . . 3 . 3 5 . 17 . 5 . 1 . 1 . 1 17 Record 56 | . . . 3 . 25 . . . . . 2 . . 4 . 5 . . . . . . . . 17 Part Schematic 4 | . . . . . . . . . . . . . . . . 4 . . . . . . . . . Robot Analysis 4 | . . . . . . . . . . . . . . . . 4 . . . . . . . . . Prototype ID Bank 6 | . 2 . . . . . . . . . . . . . . 4 . . . . . . . . . Open Door 7 | . . 1 1 . 1 . . . . . 1 . 1 1 . . . . . . . . . 1 . Branch Access Points 4 | . . . . . . . . 1 . . . . 1 . . . . 1 . 1 . . . . . Unreport Threat 5 | . 1 . . . . . . 1 . . . . 1 . . . . 2 . . . . . . . Locate Traps 1 | . 1 . . . . . . . . . . . . . . . . . . . . . . . . Hauler Manifests 1 | . . . . . . . . . . . . . . . . . . 1 . . . . . . . Registered Prototypes 1 | . . . . . . . . . . . . . . . . . . 1 . . . . . . . Zone Layout 2 | . 2 . . . . . . . . . . . . . . . . . . . . . . . . Proto ID Catalog 3 | . . . 1 . 1 . . . . . . . . . . . . . . . . 1 . . . Fabricator Hacks 4 | . . . . . . . . 1 . . . . 2 . . . . 1 . . . . . . . Network Status 3 | . . . . . . . . 1 . . . . 1 . . . . 1 . . . . . . . Build 1 | . . . . . . . . . . . . . 1 . . . . . . . . . . . . Repair Station Hacks 5 | . . . . . . . . 1 . . . . . . . . . 2 . . 2 . . . . Scan Component 3 | . . . . . . . . 1 . . . . . . . . . 1 . . 1 . . . . Repair 2 | . . . . . . . . . . . . . . . . . . 1 . . 1 . . . . Recycling Unit Hacks . | . . . . . . . . . . . . . . . . . . . . . . . . . . Scanalyzer 7 | . . . . . . . . . . . . . 1 . . . . 4 . . 2 . . . . Insert Component 3 | . . . . . . . . . . . . . . . . . . 3 . . . . . . . Retrieve Study 4 | . . . . . . . . . . . . . 1 . . . . 1 . . 2 . . . . Garrison Access Hacks 3 | . . . . . . 1 . 1 . . . . . . . . . 1 . . . . . . . Seal Access 3 | . . . . . . 1 . 1 . . . . . . . . . 1 . . . . . . . Unauthorized Hacks 9 | . . . . . . . . . . . . . . . . . . 3 2 1 . 2 1 . . Terminals 5 | . . . . . . . . . . . . . . . . . . 1 2 1 . . 1 . . Assimilate 3 | . . . . . . . . . . . . . . . . . . 1 2 . . . . . . Botnet 2 | . . . . . . . . . . . . . . . . . . . . 1 . . 1 . . Fabricators 1 | . . . . . . . . . . . . . . . . . . 1 . . . . . . . Haulers 1 | . . . . . . . . . . . . . . . . . . 1 . . . . . . . Repair Stations 1 | . . . . . . . . . . . . . . . . . . 1 . . . . . . . Patch 1 | . . . . . . . . . . . . . . . . . . 1 . . . . . . . Recycling Units 1 | . . . . . . . . . . . . . . . . . . . . . . 1 . . . Fedlink 1 | . . . . . . . . . . . . . . . . . . . . . . 1 . . . Scanalyzers . | . . . . . . . . . . . . . . . . . . . . . . . . . . Garrison Access 1 | . . . . . . . . . . . . . . . . . . . . . . 1 . . . Jam 1 | . . . . . . . . . . . . . . . . . . . . . . 1 . . . Data Cores Recovered 9 | . . . . . . . . . . . . . . . . . . 5 . . 3 . 1 . . Used 4 | . . . . . . . . . . . . . . . . . . 2 . . 1 . 1 . . Hacking Detections 66 | . 4 . . . . . . 15 . . . . 7 . . . . 12 3 6 8 3 8 . . Full Trace Events 5 | . . . . . . . . 3 . . . . . . . . . 1 . . . . 1 . . Feedback Events . | . . . . . . . . . . . . . . . . . . . . . . . . . . Feedback Blocked . | . . . . . . . . . . . . . . . . . . . . . . . . . . Robot Schematics Acquired 6 | . . . . . . . . . . . . . . . . . . . 4 . 1 1 . . . Robots Built . | . . . . . . . . . . . . . . . . . . . . . . . . . . Authchips . | . . . . . . . . . . . . . . . . . . . . . . . . . . Time . | . . . . . . . . . . . . . . . . . . . . . . . . . . Total Robot Build Rating . | . . . . . . . . . . . . . . . . . . . . . . . . . . Part Schematics Acquired 33 | . . . . . . . . . . . . . . . . 4 . . 14 . 7 8 . . . Parts Built 2 | . . . . . . . . . . . . . 2 . . . . . . . . . . . . Authchips . | . . . . . . . . . . . . . . . . . . . . . . . . . . Time 69 | . . . . . . . . . . . . . 69 . . . . . . . . . . . . Total Part Build Rating 18 | . . . . . . . . . . . . . 18 . . . . . . . . . . . . Part Studies Acquired 4 | . . . . . . . . . . . . . 1 . . . . 1 . . 2 . . . . Parts Repaired 2 | . . . . . . . . . . . . . . . . . . 1 . . 1 . . . . Time 216 | . . . . . . . . . . . . . . . . . . 108 . . 108 . . . . Parts Recycled . | . . . . . . . . . . . . . . . . . . . . . . . . . . Recycled Matter . | . . . . . . . . . . . . . . . . . . . . . . . . . . Retrieved Matter . | . . . . . . . . . . . . . . . . . . . . . . . . . . Retrieved Components . | . . . . . . . . . . . . . . . . . . . . . . . . . . Parts Scanalyzed 1 | . . . . . . . . . . . . . . . . . . 1 . . . . . . . Part Schematics Acquired . | . . . . . . . . . . . . . . . . . . . . . . . . . . Parts Damaged . | . . . . . . . . . . . . . . . . . . . . . . . . . . Bothacking | -11 -10 -10 -10 -7 -7 -5 -5 -5 -5 -5 -5 -4 -4 -4 -4 -4 -3 -3 -3 -2 -2 -2 -1 -1 -1 ------------ Run | Yrd Mat Min Sub Rec Scr Fac Was Fac Upp Upp War Pro Fac Upp Upp Zhi Pro Res Tes Res Qua Frg Acc Com Ac0 Used RIF Installer . | . . . . . . . . . . . . . . . . . . . . . . . . . . Robots Hacked . | . . . . . . . . . . . . . . . . . . . . . . . . . . Non-combat . | . . . . . . . . . . . . . . . . . . . . . . . . . . Combat . | . . . . . . . . . . . . . . . . . . . . . . . . . . Robot Hacks Applied . | . . . . . . . . . . . . . . . . . . . . . . . . . . Relay Couplers Released . | . . . . . . . . . . . . . . . . . . . . . . . . . . Fabnet Peak Effective % . | . . . . . . . . . . . . . . . . . . . . . . . . . . Robots Rewired 5 | . . . . . . . . . . . 5 . . . . . . . . . . . . . . Allies Hacked 5 | . . . . . . . . 2 . . . . . . . . . . 1 2 . . . . . Hacks Repelled 2 | . . . . . . . . . . . . . . . . . . . . 2 . . . . . Allies | -11 -10 -10 -10 -7 -7 -5 -5 -5 -5 -5 -5 -4 -4 -4 -4 -4 -3 -3 -3 -2 -2 -2 -1 -1 -1 -------- Run | Yrd Mat Min Sub Rec Scr Fac Was Fac Upp Upp War Pro Fac Upp Upp Zhi Pro Res Tes Res Qua Frg Acc Com Ac0 Total Allies 82 | . . 4 16 . . 4 . 5 . . 5 . 4 . . . . 4 8 13 . 4 5 5 5 Largest Group 10 | . . 4 10 5 3 6 . 4 . . 5 . 4 . . . . 1 4 6 . 4 5 5 3 Highest-Rated Group 492 | . . 71 190 122 88 248 . 168 . . 241 . 188 . . . . 75 184 492 . 120 195 290 435 Highest-Rated Ally 145 | . . 31 35 35 35 46 . 42 . . 64 . 47 . . . . 75 46 82 . 30 39 58 145 Initial UFD Resources 47 | . . . . . . 37 37 37 37 37 37 39 39 39 39 39 43 43 43 47 47 47 . . . Total Orders 20 | . . . . . 3 5 . 2 . . 9 . . . . . . . . . . . . 1 . STAY 8 | . . . . . 2 2 . 1 . . 2 . . . . . . . . . . . . 1 . FOLLOW 5 | . . . . . 1 3 . 1 . . . . . . . . . . . . . . . . . AID 7 | . . . . . . . . . . . 7 . . . . . . . . . . . . . . Ally Attacks 510 | . . . 121 9 . 70 . 24 . . 78 . 32 . . . . 5 57 70 . 7 10 . 27 Total Damage 14568 | . . . 2258 187 . 1407 . 493 . . 3387 . 884 . . . . 514 1354 2902 . 147 132 . 903 Kills 78 | . . . 10 3 . 15 . 3 . . 17 . 6 . . . . 1 6 15 . . . . 2 Allies Corrupted 5 | . . . . . . 1 . . . . 1 . 1 . . . . . 1 . . . 1 . . Allies Melted 2 | . . . . . . . . . . . 2 . . . . . . . . . . . . . . X0-1V1 Amusement Gains 600 | . 8 20 1 . . 10 . 30 . . 95 10 10 . . 65 . 10 80 50 30 45 76 . 60 Good Acts 283 | . 3 18 30 11 . 26 2 20 2 6 8 . 8 1 1 . 4 11 20 22 7 32 16 16 19 Bad Acts 263 | . . 40 51 16 . 16 5 22 3 2 10 4 6 2 8 . 1 15 2 11 9 25 3 1 11 Intel | -11 -10 -10 -10 -7 -7 -5 -5 -5 -5 -5 -5 -4 -4 -4 -4 -4 -3 -3 -3 -2 -2 -2 -1 -1 -1 ------- Run | Yrd Mat Min Sub Rec Scr Fac Was Fac Upp Upp War Pro Fac Upp Upp Zhi Pro Res Tes Res Qua Frg Acc Com Ac0 Active Infowar (turns) 11752 | 73 953 . . . . 196 76 729 . . 596 260 661 155 317 119 206 674 769 829 817 1802 880 987 653 Optics 5691 | . . . . . . . . . . . . . . . . . . . . 826 817 1654 754 987 653 Sensors 2264 | . . . . . . 194 76 729 . . 596 260 409 . . . . . . . . . . . . IFF 3001 | . . . . . . . . . . . . . 62 155 317 119 206 671 713 57 511 167 23 . . Terrain 216 | 73 141 . . . . 2 . . . . . . . . . . . . . . . . . . . Structural 617 | . . . . . . . . . . . . . 617 . . . . . . . . . . . . Seismic 1024 | 70 953 . . . . . . . . . . . . . . . . 1 . . . . . . . Cloaking 958 | . . . . . . . . . . . . . . . . . . . . . . 188 606 164 . Jamming 4012 | . . . . . . . . 1 . . . . . . . . . 282 766 760 . 741 657 805 . ECM 1 | . . . . . . . . . . . . . . . . . . . 1 . . . . . . Robot Analysis Total 4 | . . . . . . . . . . . . . . . . 4 . . . . . . . . . Derelict Logs Recovered 14 | . . 1 2 . 5 . . . 1 2 . 1 . 1 1 . . . . . . . . . . Drone Launches . | . . . . . . . . . . . . . . . . . . . . . . . . . . Drone Recoveries . | . . . . . . . . . . . . . . . . . . . . . . . . . . Exploration | -11 -10 -10 -10 -7 -7 -5 -5 -5 -5 -5 -5 -4 -4 -4 -4 -4 -3 -3 -3 -2 -2 -2 -1 -1 -1 ------------- Run | Yrd Mat Min Sub Rec Scr Fac Was Fac Upp Upp War Pro Fac Upp Upp Zhi Pro Res Tes Res Qua Frg Acc Com Ac0 Turns Passed 24085 | 133 1303 1179 3811 190 3424 1428 76 1407 352 461 1090 260 732 155 317 119 206 674 774 829 817 1828 880 987 653 Spaces Moved 27363 | 58 696 596 1946 116 1695 1741 250 2256 390 426 1901 448 1374 500 807 202 386 1389 1110 1296 1240 2405 1534 916 1685 Core 129 | 2 . . . . 127 . . . . . . . . . . . . . . . . . . . . Treads 3939 | 56 696 596 1273 . 1144 174 . . . . . . . . . . . . . . . . . . . Legs 330 | . . . . . . . . 7 . 199 124 . . . . . . . . . . . . . . Wheels 1213 | . . . 673 116 424 . . . . . . . . . . . . . . . . . . . . Hover 14651 | . . . . . . 474 . 472 . . . . 235 500 807 202 386 1389 1110 1296 1240 2405 1534 916 1685 Flight 7101 | . . . . . . 1093 250 1777 390 227 1777 448 1139 . . . . . . . . . . . . Fastest Speed 6 | 50 160 160 110 120 100 6 21 6 40 40 23 25 28 28 16 34 34 16 16 31 30 23 36 36 20 Average Speed 63 | 156 160 160 178 120 199 48 21 33 86 100 32 30 33 28 33 34 34 29 33 38 38 35 36 36 23 Slowest Speed 365 | 160 160 240 240 120 240 160 21 365 120 120 270 34 34 34 34 34 34 42 43 122 110 114 36 36 63 Overloaded Moves 134 | . . . . . . 24 . 66 . . . . . . 7 . . 3 16 . 9 9 . . . Propulsion Burnouts . | . . . . . . . . . . . . . . . . . . . . . . . . . . Robots Hopped 25 | . . . . . . 6 . 15 . . 2 1 1 . . . . . . . . . . . . Potential Cave-ins 11 | . . . . . . . . 6 . . 5 . . . . . . . . . . . . . . Cave-ins Triggered 1 | . . . . . . . . . . . 1 . . . . . . . . . . . . . . Teleports 3 | . . . . . . . . . . . . . . . . . . . . . . . . 1 2 Exploration Rate (%) 64 | 4 95 98 87 43 88 27 90 64 62 66 89 51 33 65 82 69 54 37 94 36 95 63 42 52 81 Regions Visited 25 Branch Regions 17 Pre-discovered Areas 10 | . . . 1 . 5 . . . 1 . . . . . . 3 . . . . . . . . . Known Exits Taken 16 | . . . . 1 . . . 1 1 1 1 1 1 1 1 1 1 1 1 1 1 1 . . . Unknown Exits Taken 7 | 1 1 1 1 . 1 . . . . . . . . . . . . . . . . . 1 1 . Scrap Searched 28 | . . 1 9 . 8 . . . 1 . . 3 . 1 3 . 2 . . . . . . . . Spaces Dug 173 | . 2 . 4 1 . 14 . 19 . 1 7 6 8 2 . . . 21 11 23 10 8 29 7 . Terrain Destroyed 195 | . 4 15 7 1 . 14 . 19 . 1 7 6 8 2 . . . 21 11 25 10 8 29 7 . Melee 169 | . . . 2 1 . 14 . 19 . 1 7 6 8 2 . . . 21 11 23 10 8 29 7 . Projectile 12 | . 4 1 5 . . . . . . . . . . . . . . . . 2 . . . . . AOE 14 | . . 14 . . . . . . . . . . . . . . . . . . . . . . . Terrain Rammed . | . . . . . . . . . . . . . . . . . . . . . . . . . . Walls Destroyed . | . . . . . . . . . . . . . . . . . . . . . . . . . . Machines Disabled . | . . . . . . . . . . . . . . . . . . . . . . . . . . Actions | -11 -10 -10 -10 -7 -7 -5 -5 -5 -5 -5 -5 -4 -4 -4 -4 -4 -3 -3 -3 -2 -2 -2 -1 -1 -1 --------- Run | Yrd Mat Min Sub Rec Scr Fac Was Fac Upp Upp War Pro Fac Upp Upp Zhi Pro Res Tes Res Qua Frg Acc Com Ac0 Total 32542 | 78 800 731 2214 161 1743 2114 266 2628 398 454 2319 554 1545 511 831 238 428 1557 1372 1493 1511 3256 1802 1576 1962 Wait 1879 | . 24 39 83 26 9 68 . 36 . 20 255 69 48 . 9 21 18 35 27 46 109 370 76 489 2 Move 27288 | 57 695 595 1945 115 1694 1729 249 2227 389 425 1895 446 1371 499 806 201 385 1388 1109 1295 1239 2402 1533 915 1684 Hop 22 | . . . . . . 6 . 13 . . 2 . 1 . . . . . . . . . . . . Pick Up 355 | 2 15 7 48 4 18 36 5 30 1 . 12 6 11 4 . 2 . 16 14 15 21 48 5 32 3 Fast Attach 180 | 7 . 5 4 1 2 33 1 26 1 1 13 6 9 . 3 1 . 9 14 5 7 22 2 4 4 Attach 102 | . 1 4 1 . . 12 . 12 2 2 1 2 12 . . . . 2 7 7 7 12 5 6 7 Detach 69 | . 1 1 1 1 2 12 1 7 1 1 3 2 4 . . . . 2 6 . 5 13 2 2 2 Swap 402 | . 7 10 11 1 3 33 2 26 . 1 20 4 8 . . 4 . 16 33 29 18 87 47 22 20 Drop 343 | . 4 7 40 4 14 44 3 32 . . 23 7 10 5 . 1 . 22 19 3 19 48 5 28 5 Fire 210 | 12 48 58 71 7 . . . . . . 12 . . . . . . . . 2 . . . . . Melee 1499 | . . . 10 2 1 141 5 179 4 4 25 12 71 3 13 8 25 67 136 91 79 215 103 78 227 Ram 1 | . . . . . . . . 1 . . . . . . . . . . . . . . . . . Kick . | . . . . . . . . . . . . . . . . . . . . . . . . . . Crush 10 | . 5 5 . . . . . . . . . . . . . . . . . . . . . . . Escape Stasis 83 | . . . . . . . . 21 . . 1 . . . . . . . 7 . 7 39 . . 8 Rewire 58 | . . . . . . . . . . . 57 . . . . . . . . . . . 1 . . Trap . | . . . . . . . . . . . . . . . . . . . . . . . . . . Miscellaneous 41 | . . . . . . . . 18 . . . . . . . . . . . . . . 23 . . Route ------- -11/Scrapyard -10/Materials (discovered 6 exits: *Mat x3 / *Min x2 / *Sub) -10/Mines (discovered 3 exits: *Mat x2 / *Sub) -10/Subcaves (discovered 2 exits: *Mat / [*Rec]) -7/Recycling (discovered 2 exits: *Fac / *Scr) -7/Scraptown (discovered 2 exits: *Fac x2) -5/Factory (discovered 6 exits: Fac x4 / *Upp x2) -5/Waste -5/Factory (discovered 6 exits: *Fac x4 / *Upp x2) -5/Upper Caves -5/Upper Caves (discovered 2 exits: Fac / *War) -5/Warlord -4/Proximity Caves -4/Factory (discovered 6 exits: *Res / *Upp x2 / *Ext x2 / Arm) -4/Upper Caves -4/Upper Caves (discovered 2 exits: *Res / *Zhi) -4/Zhirov -3/Proximity Caves -3/Research (discovered 4 exits: Res x3 / *Tes) -3/Testing -2/Research (discovered 4 exits: Acc x2 / *Qua x2) -2/Quarantine (discovered 3 exits: *Acc / *Sec / *Frg) -2/Protoforge -1/Access -1/Command (discovered 3 exits: Sur x2 / *Ac0) -1/Access_0 0b11 Command History --------- Turn | Location | Event 6 | -11/Scrapyard | Discovered new exit (range 16) 134 | -11/Scrapyard | Entered Materials 188 | -10/Materials | Discovered new exit (range 5) 209 | -10/Materials | Discovered new exit (range 5) 317 | -10/Materials | Build established: Mutant 410 | -10/Materials | Discovered new exit (range 16) 555 | -10/Materials | Discovered new exit (range 12) 1038 | -10/Materials | Discovered new exit (range 12) 1086 | -10/Materials | Prayed at D.C.S.S. Altar Unit 1092 | -10/Materials | Melee accuracy permanently improved by X0-1V1 (+5%; -50 max core) 1166 | -10/Materials | X0-1V1 foreshadows a heat wave 1224 | -10/Materials | Discovered new exit (range 13) 1338 | -10/Materials | Core integrity permanently improved by X0-1V1 (+200) 1436 | -10/Materials | Ambient heat levels rising (+10) 1437 | -10/Materials | Entered Mines 1437 | -10/Mines | X0-1V1 vaporized surrounding terrain (radius 15) 1437 | -10/Mines | Discovered new exit (range 8) 1450 | -10/Mines | TH resistance permanently improved by X0-1V1 (+10%; -100 max core) 1463 | -10/Mines | X0-1V1 sent you into danger 1480 | -10/Mines | Weapon slot count temporarily expanded by X0-1V1 (+1) 1482 | -10/Mines | X0-1V1 announced a LAN party 1489 | -10/Mines | Discovered new exit (range 5) 1493 | -10/Mines | X0-1V1 downgraded hostiles (x1) 1536 | -10/Mines | X0-1V1 upgraded hostiles (x1) 1602 | -10/Mines | X0-1V1 mutated your Weapon slot to Power slot 1606 | -10/Mines | System corruption reached 10% 1622 | -10/Mines | X0-1V1 added 0b10 threat records associated with you (considerable) 1628 | -10/Mines | X0-1V1 sent someone to clean up after you 1636 | -10/Mines | Identified exit to Materials 1636 | -10/Mines | X0-1V1 revealed exit location to -9/Materials 1646 | -10/Mines | X0-1V1 activates XOMVISION 1656 | -10/Mines | X0-1V1 sent hostile G-34 Mercenary (x4) 1805 | -10/Mines | X0-1V1 sent hostile S-10 Pest (x4) 1921 | -10/Mines | Core integrity restored by X0-1V1 (+69) 2078 | -10/Mines | Received a Mining Laser from a helpful Derelict 2114 | -10/Mines | Assisted by bots powering up and referring to "LRC-V3" 2125 | -10/Mines | X0-1V1 activates XOMVISION 2190 | -10/Mines | X0-1V1 sent you into danger 2261 | -10/Mines | Learned Materials emergency access door positions 2402 | -10/Mines | X0-1V1 added 0b10 threat records associated with you (minor) 2413 | -10/Mines | Met a Derelict shopkeep closing up shop 2463 | -10/Mines | X0-1V1 sent hostile S-10 Pest (x5) 2616 | -10/Mines | Entered Subcaves 2616 | -10/Subcaves | Accompanied by 3 allies 2617 | -10/Subcaves | Approached by a straggling Scientist 2618 | -10/Subcaves | Shifting Twisted Machinery released Battle Rifle 2619 | -10/Subcaves | Shifting Twisted Machinery released Humpback 2630 | -10/Subcaves | Shifting Twisted Machinery released Barrage Gun 2631 | -10/Subcaves | Learned Materials terminal intel 2675 | -10/Subcaves | Shifting Twisted Machinery released Mak. Hammer 2683 | -10/Subcaves | X0-1V1 sent you into danger 2957 | -10/Subcaves | Discovered new exit (range 10) 3014 | -10/Subcaves | Lost 3 allies 3101 | -10/Subcaves | A swath of the cavern ceiling suddenly collapsed 3223 | -10/Subcaves | Visited triangular shrine 3235 | -10/Subcaves | Found Prototype Device 3235 | -10/Subcaves | Identified V3-11A's Pendant 3240 | -10/Subcaves | Befriended Subdweller 3481 | -10/Subcaves | X0-1V1 activates XOMVISION 3485 | -10/Subcaves | Befriended Subdweller 3508 | -10/Subcaves | X0-1V1 mutated your Propulsion slot to Utility slot 3579 | -10/Subcaves | System corruption reached 30% 3597 | -10/Subcaves | Visited Clippyterm 3604 | -10/Subcaves | Learned location of Deep Caves (-6) 3750 | -10/Subcaves | Core integrity restored by X0-1V1 (+48) 3817 | -10/Subcaves | Disturbed a concealed Subdweller 3820 | -10/Subcaves | Befriended Subdweller 4050 | -10/Subcaves | Befriended Subdweller 4160 | -10/Subcaves | Befriended Subdweller 4160 | -10/Subcaves | Befriended Subdweller 4260 | -10/Subcaves | Befriended Subdweller 4260 | -10/Subcaves | Befriended Subdweller 4335 | -10/Subcaves | Befriended Subdweller 4375 | -10/Subcaves | Befriended Subdweller 4375 | -10/Subcaves | Befriended Subdweller 4863 | -10/Subcaves | Shifting Twisted Machinery released Mak. Leg 4873 | -10/Subcaves | Discovered new exit (range 5) 5220 | -10/Subcaves | Visited 4L-MR0's lab 5243 | -10/Subcaves | Found Gun Armor 5400 | -10/Subcaves | Befriended Subdweller 5492 | -10/Subcaves | Spotted Lgt. EM Pulse Cannon Carrier 5493 | -10/Subcaves | Met H3-MLN with WIP Botcube army 5494 | -10/Subcaves | Spotted All I Could Find 5504 | -10/Subcaves | Allies destroyed All I Could Find 5550 | -10/Subcaves | Destroyed Lgt. EM Pulse Cannon Carrier 5591 | -10/Subcaves | Found Botcube 5622 | -10/Subcaves | X0-1V1 rewrote CJ-6H6(R) IFF filter 5625 | -10/Subcaves | Befriended Subdweller 5625 | -10/Subcaves | Identified exit to Materials 5625 | -10/Subcaves | X0-1V1 revealed exit location to -8/Materials 5633 | -10/Subcaves | Core integrity restored by X0-1V1 (+78) 5663 | -10/Subcaves | X0-1V1 tapped a No Entrance sign 5664 | -10/Subcaves | Found Botcube 5669 | -10/Subcaves | X0-1V1 activates XOMVISION 5684 | -10/Subcaves | X0-1V1 rewrote CJ-6H6(R) IFF filter 5685 | -10/Subcaves | Befriended Subdweller 5731 | -10/Subcaves | Found H3-MLN's Flail 5751 | -10/Subcaves | X0-1V1 sent you into danger 5755 | -10/Subcaves | Befriended Subdweller 5755 | -10/Subcaves | Befriended Subdweller 5760 | -10/Subcaves | A swath of the cavern ceiling suddenly collapsed 5760 | -10/Subcaves | Learned Materials garrison access intel 5760 | -10/Subcaves | X0-1V1 rewrote FU-F2R(R) IFF filter 5765 | -10/Subcaves | Befriended Subdweller 5819 | -10/Subcaves | Build established: Scavenger-Mutant 5881 | -10/Subcaves | X0-1V1 activates XOMVISION 5934 | -10/Subcaves | Botcube activated 5946 | -10/Subcaves | Botcube completed mutation into treaded form, armed with 2 guns. 5987 | -10/Subcaves | X0-1V1 rewrote WD-RQ5(R) IFF filter 6007 | -10/Subcaves | Botcube activated 6019 | -10/Subcaves | Botcube completed mutation into treaded form, armed with 2 guns. 6091 | -10/Subcaves | X0-1V1 rewrote HO-R0T(R) IFF filter 6095 | -10/Subcaves | Befriended Subdweller 6159 | -10/Subcaves | Build established: Mutant 6164 | -10/Subcaves | X0-1V1 rewrote FS-SQR(R) IFF filter 6165 | -10/Subcaves | Befriended Subdweller 6225 | -10/Subcaves | X0-1V1 rewrote FU-F2R(R) IFF filter 6300 | -10/Subcaves | X0-1V1 rewrote FS-SQR(R) IFF filter 6309 | -10/Subcaves | X0-1V1 activates XOMVISION 6311 | -10/Subcaves | Forcibly received Sfc. Transmogifier from X0-1V1 6427 | -10/Subcaves | Entered Recycling 6427 | -7/Recycling | Accompanied by 5 allies 6428 | -7/Recycling | Joined Warlord attack on 0b10 via Recycling 6437 | -7/Recycling | Identified exit to Scraptown 6437 | -7/Recycling | X0-1V1 revealed exit location to -7/Scraptown 6508 | -7/Recycling | X0-1V1 added 0b10 threat records associated with you (major) 6512 | -7/Recycling | X0-1V1 sent you into danger 6554 | -7/Recycling | Discovered new exit (range 8) 6557 | -7/Recycling | X0-1V1 vaporized surrounding terrain (radius 20) 6564 | -7/Recycling | X0-1V1 rewrote HO-R0T(R) IFF filter 6565 | -7/Recycling | Scanned before Scraplab entrance 6571 | -7/Recycling | Core integrity restored by X0-1V1 (+78) 6581 | -7/Recycling | X0-1V1 added 0b10 threat records associated with you (major) 6617 | -7/Recycling | Entered Scraptown 6617 | -7/Scraptown | Accompanied by 3 allies 6637 | -7/Scraptown | 2 allies followed out of Recycling 6744 | -7/Scraptown | Build established: Scavenger-Mutant 6765 | -7/Scraptown | Scanned Subdweller tech in exchange for log data 6767 | -7/Scraptown | Learned location of 1 exit from Research 6770 | -7/Scraptown | Learned Research emergency access door positions 6771 | -7/Scraptown | Learned Research non-interactive machine intel 6772 | -7/Scraptown | Learned location of Armory (-4) 6804 | -7/Scraptown | Visited Bundlers 6909 | -7/Scraptown | Visited UFD Registry 6909 | -7/Scraptown | Registered with UFD as "Spikebucket" 6935 | -7/Scraptown | Visited LU-1G1's Boring Crew 6961 | -7/Scraptown | Visited Curators Association 6981 | -7/Scraptown | Visited Scrap Suit Storage 6999 | -7/Scraptown | Visited Scrapoid Research Area 7029 | -7/Scraptown | Visited Scrapoid Pod Storage 7199 | -7/Scraptown | Visited Research Penetration Think Tank 7240 | -7/Scraptown | Visited Sword Containment 7264 | -7/Scraptown | Found Prototype Slashing Weapon 7264 | -7/Scraptown | Identified Companion Sword 7318 | -7/Scraptown | Visited Supply Room 7366 | -7/Scraptown | Visited Science Guys 7450 | -7/Scraptown | Build established: Mutant 7458 | -7/Scraptown | Visited Cartography Club 7547 | -7/Scraptown | Learned location of Storage (-7) 7547 | -7/Scraptown | Learned location of Extension (-4) 7547 | -7/Scraptown | Learned 20 Factory zone layouts 7547 | -7/Scraptown | Learned 8 Lower Caves zone layouts 7547 | -7/Scraptown | Learned 12 Proximity Caves zone layouts 7547 | -7/Scraptown | Learned 20 Proximity Caves zone layouts 7547 | -7/Scraptown | Learned 4 Armory zone layouts 7547 | -7/Scraptown | Learned location of 1 exit from Research 7547 | -7/Scraptown | Learned location of 3 exits from Proximity Caves 7588 | -7/Scraptown | Found Deep Structural Scanner 7761 | -7/Scraptown | Discovered new exit (range 5) 7909 | -7/Scraptown | Heard Great Nut preacher, LISTEN AND RECITE! 8058 | -7/Scraptown | Visited CPS Storage 8103 | -7/Scraptown | Visited IN-MT5's Study 8130 | -7/Scraptown | Visited Cave Peace 8334 | -7/Scraptown | Discovered new exit (range 11) 9142 | -7/Scraptown | Visited Cyclists 9159 | -7/Scraptown | Entered Cyclist Reading Room 9205 | -7/Scraptown | Visited The Evicted 9656 | -7/Scraptown | Found Scrapoid Pod 9921 | -7/Scraptown | Met Optimus 9921 | -7/Scraptown | Accepted into 0bPrime 10041 | -7/Scraptown | Entered Factory 10041 | -5/Factory | Accompanied by 2 allies 10041 | -5/Factory | Evolved 10 slots: Propulsion x5, Utility x5 10042 | -5/Factory | Identified exit to Upper Caves 10043 | -5/Factory | Identified exit to Factory 10382 | -5/Factory | Build established: Scavenger-Mutant 10531 | -5/Factory | X0-1V1 redirected Transport squads to designated parking area 10667 | -5/Factory | Attached Gun Armor, gained temporary slots: Weapon x2 10671 | -5/Factory | Lost 5 parts (2p2n1u) 10745 | -5/Factory | X0-1V1 sent you to a vault 10786 | -5/Factory | X0-1V1 revealed exit location to -4/Factory 10920 | -5/Factory | X0-1V1 activates XOMVISION 11161 | -5/Factory | X0-1V1 revealed exit location to -4/Factory 11213 | -5/Factory | X0-1V1 activates XOMVISION 11263 | -5/Factory | X0-1V1 enhanced Transport squad support 11278 | -5/Factory | System corruption reached 10% 11279 | -5/Factory | X0-1V1 sent you into danger 11337 | -5/Factory | X0-1V1 made a cryptic comment about sterilization and BL-4Z3 11376 | -5/Factory | X0-1V1 sent you into danger 11390 | -5/Factory | Sterilization system engaged 11390 | -5/Factory | Non-combat units ordered to evacuate 11394 | -5/Factory | X0-1V1 added 0b10 threat records associated with you (considerable) 11412 | -5/Factory | System corruption reached 30% 11414 | -5/Factory | X0-1V1 sent hostile Savage (x2) 11455 | -5/Factory | X0-1V1 mutated your Utility slot to Weapon slot 11469 | -5/Factory | Sucked down chute 11469 | -5/Factory | Entered Waste 11469 | -5/Waste | The area was eerily silent 11488 | -5/Waste | X0-1V1 mutated your Weapon slot to Propulsion slot 11489 | -5/Waste | Found Broken Gamma Bomb Array 11512 | -5/Waste | X0-1V1 sent hostile Fireman (x2) 11517 | -5/Waste | Discovered new exit (range 13) 11523 | -5/Waste | Found Broken Adv. Force Booster 11529 | -5/Waste | X0-1V1 sent you into danger 11543 | -5/Waste | Identified exit to Factory 11545 | -5/Waste | Entered Factory 11549 | -5/Factory | Discovered exit to Factory (range 5) 11590 | -5/Factory | Build established: Sprinter 11593 | -5/Factory | X0-1V1 sent you to a vault 11625 | -5/Factory | Discovered exit to Factory (range 15) 11682 | -5/Factory | Core integrity restored by X0-1V1 (+178) 11685 | -5/Factory | X0-1V1 vaporized surrounding terrain (radius 16) 11766 | -5/Factory | Sensors blinded by X0-1V1 11767 | -5/Factory | X0-1V1 sent you into danger 11832 | -5/Factory | Garrison activated, responded to threat 11864 | -5/Factory | X0-1V1 enhanced Transport squad support 11880 | -5/Factory | X0-1V1 mutated your Utility slot to Propulsion slot 12000 | -5/Factory | Lost 3 parts (2n1u) 12000 | -5/Factory | Discovered exit to Factory (range 6) 12070 | -5/Factory | X0-1V1 announced a LAN party 12133 | -5/Factory | X0-1V1 activates XOMVISION 12193 | -5/Factory | Spotted B-75 Beast 12307 | -5/Factory | X0-1V1 sent hostile Thug (x2) 12368 | -5/Factory | X0-1V1 downgraded hostiles (x1) 12419 | -5/Factory | Lost 10 parts (1p7n2u) 12532 | -5/Factory | X0-1V1 activates XOMVISION 12590 | -5/Factory | Core integrity fell below 50% 12645 | -5/Factory | Lost 3 parts (2n1u) 12722 | -5/Factory | X0-1V1 activates XOMVISION 12749 | -5/Factory | X0-1V1 revealed exit location to -4/Factory 12796 | -5/Factory | Build established: Scavenger-Mutant 12919 | -5/Factory | Biomechanical Wings reconfigured into Item Mimic 12950 | -5/Factory | X0-1V1 downgraded hostiles (x1) 12952 | -5/Factory | Entered Upper Caves 12966 | -5/Upper Caves | Encountered a Warlord checkpoint 12974 | -5/Upper Caves | Lost 7 parts (2p3n2u) 12993 | -5/Upper Caves | Identified exit to Upper Caves 12993 | -5/Upper Caves | X0-1V1 revealed exit location to -5/Upper Caves 13015 | -5/Upper Caves | Core integrity restored by X0-1V1 (+241) 13228 | -5/Upper Caves | Build established: Mutant 13304 | -5/Upper Caves | Entered another Upper Caves area 13306 | -5/Upper Caves | Attracted the attention of an 0b10 checkpoint 13321 | -5/Upper Caves | X0-1V1 mutated your Propulsion slot to Weapon slot 13325 | -5/Upper Caves | X0-1V1 activates XOMVISION 13348 | -5/Upper Caves | X0-1V1 revealed exit location to -4/Factory 13350 | -5/Upper Caves | Core integrity restored by X0-1V1 (+273) 13363 | -5/Upper Caves | Learned 4 Factory zone layouts 13587 | -5/Upper Caves | Learned Factory garrison access intel 13636 | -5/Upper Caves | Discovered new exit (range 6) 13642 | -5/Upper Caves | Identified exit to Warlord 13765 | -5/Upper Caves | Entered Warlord 13955 | -5/Warlord | Found Prototype Device 13955 | -5/Warlord | Identified Exp. Phase Shifter 13964 | -5/Warlord | Found Prototype Reactor 14071 | -5/Warlord | Rebuked by Warlord 14095 | -5/Warlord | Warlord's base attacked by MAIN.C 14105 | -5/Warlord | Found Prototype Energy Cannon 14105 | -5/Warlord | Identified Vortex Driver 14108 | -5/Warlord | Found Prototype Energy Gun 14108 | -5/Warlord | Identified Vortex Rifle 14327 | -5/Warlord | Warlord forces counterattacked 14349 | -5/Warlord | Build established: Commander-Sprinter 14432 | -5/Warlord | X0-1V1 rewrote Slayer 6b IFF filter 14433 | -5/Warlord | Spotted Striker 14438 | -5/Warlord | Spotted Striker 14469 | -5/Warlord | Core integrity restored by X0-1V1 (+241) 14512 | -5/Warlord | Lost 14 allies 14520 | -5/Warlord | Discovered new exit (range 14) 14526 | -5/Warlord | Spotted Striker 14594 | -5/Warlord | Crushed by falling debris 14596 | -5/Warlord | Spotted Striker 14596 | -5/Warlord | Spotted Striker 14597 | -5/Warlord | Spotted Striker 14602 | -5/Warlord | X0-1V1 mutated your Weapon slot to Utility slot 14615 | -5/Warlord | Spotted Executioner 14646 | -5/Warlord | Attached CPS modules to Striker 14650 | -5/Warlord | Attached CPS modules to Striker 14654 | -5/Warlord | Lost 18 allies 14755 | -5/Warlord | Build established: Scavenger-Sprinter 14770 | -5/Warlord | Warlord base infiltrated, sounded retreat 14831 | -5/Warlord | Spotted Striker 14847 | -5/Warlord | Spotted Striker 14849 | -5/Warlord | Spotted Executioner 14854 | -5/Warlord | Identified exit to Proximity Caves 14855 | -5/Warlord | Entered Proximity Caves 14869 | -4/Proximity Caves | Unaware initiated a cargo recovery operation 14923 | -4/Proximity Caves | X0-1V1 sent you into danger 14980 | -4/Proximity Caves | Found Prototype Processor 14980 | -4/Proximity Caves | Identified Exp. Core Analyzer 14984 | -4/Proximity Caves | Found Prototype Device 14984 | -4/Proximity Caves | Identified Exp. Actuator Array 15011 | -4/Proximity Caves | Learned Research trap positions 15115 | -4/Proximity Caves | Entered Factory 15115 | -4/Factory | Evolved 2 slots: Utility x2 15117 | -4/Factory | Loaded intel: 4 garrison access locations 15202 | -4/Factory | Fabricated Cmb. Linear Gravjet? 15248 | -4/Factory | Sensors blinded by X0-1V1 15296 | -4/Factory | Lost 3 parts (1p2u) 15339 | -4/Factory | X0-1V1 sent allied G-67 Veteran (x4) 15384 | -4/Factory | Found Unknown Device 15384 | -4/Factory | Identified Quantum Capacitor 15551 | -4/Factory | X0-1V1 added 0b10 threat records associated with you (minor) 15620 | -4/Factory | Identified exit to Upper Caves 15620 | -4/Factory | Identified exit to Extension 15620 | -4/Factory | Identified exit to Armory 15640 | -4/Factory | X0-1V1 activates XOMVISION 15682 | -4/Factory | Weapon slot count temporarily expanded by X0-1V1 (+3) 15713 | -4/Factory | Build established: Scavenger-Scout 15755 | -4/Factory | Identified Vortex Chain Reactor 15809 | -4/Factory | Discovered new exit (range 7) 15824 | -4/Factory | X0-1V1 sent hostile X-72 Disruptor (x3) 15842 | -4/Factory | Attached CPS modules to R-10 Processor 15847 | -4/Factory | Entered Upper Caves 15854 | -4/Upper Caves | Learned Research stockpile data 15924 | -4/Upper Caves | X0-1V1 activates XOMVISION 15931 | -4/Upper Caves | Learned Armory garrison access intel 15931 | -4/Upper Caves | Learned Factory terminal intel 15931 | -4/Upper Caves | Learned location of 1 exit from Research 15997 | -4/Upper Caves | X0-1V1 mutated your Propulsion slot to Utility slot 16000 | -4/Upper Caves | Discovered new exit (range 5) 16001 | -4/Upper Caves | Identified exit to Upper Caves 16002 | -4/Upper Caves | Entered another Upper Caves area 16029 | -4/Upper Caves | Discovered new exit (range 8) 16055 | -4/Upper Caves | Spotted B-86 Titan 16204 | -4/Upper Caves | X0-1V1 activates XOMVISION 16238 | -4/Upper Caves | Learned Research security intel 16258 | -4/Upper Caves | Encountered a Warlord checkpoint 16294 | -4/Upper Caves | System corruption reached 10% 16303 | -4/Upper Caves | Build established: Mutant 16311 | -4/Upper Caves | Discovered new exit (range 15) 16315 | -4/Upper Caves | Identified exit to Zhirov 16319 | -4/Upper Caves | Entered Zhirov 16319 | -4/Zhirov | Discovered new exit (range 3) 16326 | -4/Zhirov | Met Zhirov 16332 | -4/Zhirov | Learned location of Quarantine (-2) 16332 | -4/Zhirov | Learned location of Testing (-3) 16332 | -4/Zhirov | Learned location of Command (-1) 16335 | -4/Zhirov | Zhirov requested help retrieving the SGEMP Prototype 16340 | -4/Zhirov | Found Alien Artifact 16340 | -4/Zhirov | Identified Integrated Reactor 16340 | -4/Zhirov | Installed Integrated Reactor, increased core energy generation (+10) 16347 | -4/Zhirov | Found Alien Artifact 16390 | -4/Zhirov | Cloak Generator disabled 16390 | -4/Zhirov | Attacked by Zhirov 16396 | -4/Zhirov | Identified exit to Proximity Caves 16400 | -4/Zhirov | Enhanced Grunts warped into view 16419 | -4/Zhirov | Zhirov detonated his lab 16438 | -4/Zhirov | Entered Proximity Caves 16439 | -3/Proximity Caves | Identified exit to Research 16494 | -3/Proximity Caves | X0-1V1 activates XOMVISION 16597 | -3/Proximity Caves | Forged Quantum Companion 16644 | -3/Proximity Caves | Entered Research 16644 | -3/Research | Evolved 2 slots: Propulsion x1, Utility x1 16645 | -3/Research | Identified exit to Research 16646 | -3/Research | Loaded intel: 98 trap records 16650 | -3/Research | Loaded intel: 78 non-interactive machine locations 16757 | -3/Research | Repaired Centrium Light Armor Plating 16793 | -3/Research | Spotted B-86 Titan 16796 | -3/Research | X0-1V1 sent allied Wizard (x3) 16811 | -3/Research | X0-1V1 sent you into danger 16837 | -3/Research | Lost 3 allies 16849 | -3/Research | X0-1V1 announced a LAN party 16850 | -3/Research | X0-1V1 tapped a No Entrance sign 16896 | -3/Research | Sensors blinded by X0-1V1 16955 | -3/Research | Identified exit to Testing 16966 | -3/Research | X0-1V1 added 0b10 threat records associated with you (major) 16966 | -3/Research | X0-1V1 vaporized surrounding terrain (radius 16) 17144 | -3/Research | Search patrols dispatched 17214 | -3/Research | System corruption reached 10% 17217 | -3/Research | X0-1V1 mutated your Utility slot to Propulsion slot 17283 | -3/Research | Central database locked down 17283 | -3/Research | Identified Transdimensional Reconstructor 17318 | -3/Research | Entered Testing 17356 | -3/Testing | X0-1V1 revealed exit location to -2/Research 17378 | -3/Testing | Scanned by Researcher 17384 | -3/Testing | X0-1V1 sent allied Butcher (x4) 17391 | -3/Testing | Found Prototype Device 17391 | -3/Testing | Identified Exp. EM Disruption Field 17454 | -3/Testing | Found Prototype Ballistic Cannon 17459 | -3/Testing | Lost 4 allies 17575 | -3/Testing | X0-1V1 activates XOMVISION 17593 | -3/Testing | Build established: Sprinter 17697 | -3/Testing | Found Prototype Device 17697 | -3/Testing | Identified Exp. Hardlight Generator 17711 | -3/Testing | X0-1V1 sent you to a vault 17716 | -3/Testing | Found Prototype Device 17716 | -3/Testing | Identified Exp. EM Shield 17729 | -3/Testing | Found Prototype Protection 17729 | -3/Testing | Identified Centrium Heavy Armor Plating 17805 | -3/Testing | X0-1V1 sent allied Thug (x4) 17815 | -3/Testing | X0-1V1 upgraded hostiles (x1) 17837 | -3/Testing | Attached CPS modules to A-15 Conveyor 17995 | -3/Testing | Sensors blinded by X0-1V1 18005 | -3/Testing | Spotted PH-UJHL58XCON 18009 | -3/Testing | Attached CPS modules to PH-UJHL58XCON 18032 | -3/Testing | Destroyed PH-UJHL58XCON 18034 | -3/Testing | Found Prototype Processor 18034 | -3/Testing | Identified Exp. Targeting Computer 18035 | -3/Testing | Found Prototype Reactor 18035 | -3/Testing | Identified Zero-point Reactor 18037 | -3/Testing | Found Zero-point Reactor 18042 | -3/Testing | Found Prototype Device 18042 | -3/Testing | Identified Exp. Weapon Cycler 18045 | -3/Testing | Found Prototype Device 18045 | -3/Testing | Identified Exp. ECM Suite 18050 | -3/Testing | Found Exp. Phase Shifter 18092 | -3/Testing | Entered Research 18092 | -2/Research | Evolved 2 slots: Utility x2 18102 | -2/Research | X0-1V1 sent hostile Fireman (x3) 18118 | -2/Research | X0-1V1 sent allied Cetus Guard (x2) 18150 | -2/Research | X0-1V1 sent you to a vault 18169 | -2/Research | Identified exit to Access 18169 | -2/Research | X0-1V1 revealed exit location to -1/Access 18237 | -2/Research | Master 9a assimilated hostile W-44 Eye 18284 | -2/Research | Weapon slot count temporarily expanded by X0-1V1 (+3) 18342 | -2/Research | First assault squad dispatched 18402 | -2/Research | X0-1V1 activates XOMVISION 18423 | -2/Research | X0-1V1 redirected Transport squads to designated parking area 18556 | -2/Research | System corruption reached 10% 18564 | -2/Research | Found Prototype Processor 18564 | -2/Research | Identified Exp. Armor Integrity Analyzer 18576 | -2/Research | Lost 3 parts (1p1n1u) 18592 | -2/Research | X0-1V1 sent allied H-88 Terminator (x4) 18592 | -2/Research | P-80 Master assimilated allied H-88 Terminator 18594 | -2/Research | P-80 Master assimilated allied H-88 Terminator 18717 | -2/Research | Identified exit to Quarantine 18717 | -2/Research | X0-1V1 revealed exit location to -1/Access 18833 | -2/Research | Build established: Scavenger-Mutant 18850 | -2/Research | X0-1V1 turns hostiles against one another 18863 | -2/Research | X0-1V1 whisked you away to safety 18897 | -2/Research | Spotted Executioner 18898 | -2/Research | Cargo convoy interrupted 18898 | -2/Research | Spotted Executioner 18898 | -2/Research | X0-1V1 whisked you away to safety 18916 | -2/Research | Spotted B-90 Cyclops 18921 | -2/Research | Entered Quarantine 18930 | -2/Quarantine | Found Alien Artifact 18934 | -2/Quarantine | Identified Subatomic Replicator 18935 | -2/Quarantine | Forged Prototype Slashing Weapon 18951 | -2/Quarantine | Identified exit to Section 7 18951 | -2/Quarantine | X0-1V1 revealed exit location to -2/Section 7 19012 | -2/Quarantine | Found Alien Reactor 19034 | -2/Quarantine | Sensors blinded by X0-1V1 19044 | -2/Quarantine | X0-1V1 enhanced Transport squad support 19092 | -2/Quarantine | X0-1V1 mutated your Propulsion slot to Weapon slot 19153 | -2/Quarantine | X0-1V1 announced a LAN party 19187 | -2/Quarantine | X0-1V1 revealed exit location to -1/Access 19225 | -2/Quarantine | Found Chaos Jack 19226 | -2/Quarantine | Found Alien Slashing Weapon 19241 | -2/Quarantine | Found Alien Artifact 19241 | -2/Quarantine | Identified Phase Redirector 19311 | -2/Quarantine | Central database locked down 19316 | -2/Quarantine | Found Prototype Device 19316 | -2/Quarantine | Identified Exp. Shield Generator 19421 | -2/Quarantine | First assault squad dispatched 19451 | -2/Quarantine | Repaired Centrium Heavy Armor Plating 19491 | -2/Quarantine | X0-1V1 sent hostile Wasp (x3) 19652 | -2/Quarantine | Identified exit to Protoforge 19652 | -2/Quarantine | X0-1V1 revealed exit location to -2/Protoforge 19713 | -2/Quarantine | Spotted Fortress 19738 | -2/Quarantine | Entered Protoforge 19772 | -2/Protoforge | X0-1V1 whisked you away to safety 19799 | -2/Protoforge | Spotted AP7-3 19807 | -2/Protoforge | Spotted AP7-3 19824 | -2/Protoforge | Superfortress began startup sequence 19834 | -2/Protoforge | Build established: Mutant 19834 | -2/Protoforge | Spotted Overlord 19843 | -2/Protoforge | Spotted Decapitator 19843 | -2/Protoforge | Spotted Decapitator 19843 | -2/Protoforge | Spotted EXE-6 19844 | -2/Protoforge | Spotted EXE-6 19853 | -2/Protoforge | X0-1V1 added 0b10 threat records associated with you (considerable) 19860 | -2/Protoforge | UFD initiated attack on Protoforge (Readiness: Very Low) 19860 | -2/Protoforge | Loaded intel: 3 recycling unit locations 19867 | -2/Protoforge | Spotted EXE-6 19867 | -2/Protoforge | Spotted EXE-6 19889 | -2/Protoforge | Spotted Immortal 19890 | -2/Protoforge | Spotted Immortal 19890 | -2/Protoforge | Spotted Immortal 19891 | -2/Protoforge | X0-1V1 sent you to a vault 19909 | -2/Protoforge | Sensors blinded by X0-1V1 19932 | -2/Protoforge | Lost 3 allies 19936 | -2/Protoforge | X0-1V1 sent hostile S-43 Plague (x3) 19967 | -2/Protoforge | X0-1V1 revealed exit location to -1/Access 20002 | -2/Protoforge | Destroyed 7 combat bots 20026 | -2/Protoforge | Spotted Hotshot 20028 | -2/Protoforge | Identified Sigix Broadsword 20030 | -2/Protoforge | Spotted Hotshot 20031 | -2/Protoforge | Spotted Hotshot 20040 | -2/Protoforge | Destroyed Hotshot 20046 | -2/Protoforge | Destroyed Hotshot 20085 | -2/Protoforge | Destroyed Hotshot 20099 | -2/Protoforge | UFD reported confirmed Drillbomb installation 20120 | -2/Protoforge | Found Prototype Device 20124 | -2/Protoforge | Spotted Immortal 20124 | -2/Protoforge | Spotted Immortal 20127 | -2/Protoforge | Spotted Decapitator 20127 | -2/Protoforge | Spotted Decapitator 20127 | -2/Protoforge | Spotted Decapitator 20129 | -2/Protoforge | Destroyed Decapitator 20133 | -2/Protoforge | Destroyed Decapitator 20136 | -2/Protoforge | Destroyed Decapitator 20137 | -2/Protoforge | Identified Crosscalibrator 20143 | -2/Protoforge | X0-1V1 activates XOMVISION 20175 | -2/Protoforge | Spotted V305-z 20185 | -2/Protoforge | Found Cep. EMP Blanket Launcher 20186 | -2/Protoforge | Found Faulty Cep. Arcsight Missile Launcher 20191 | -2/Protoforge | Attached CPS modules to V568-c 20208 | -2/Protoforge | Found Cep. Combat Aerolev Unit 20210 | -2/Protoforge | Found Cep. Combat Aerolev Unit 20234 | -2/Protoforge | Destroyed V305-z 20234 | -2/Protoforge | Found Prototype Hover Unit 20234 | -2/Protoforge | Identified Cep. Gyrokinetic System 20238 | -2/Protoforge | X0-1V1 added 0b10 threat records associated with you (minor) 20278 | -2/Protoforge | Core integrity restored by X0-1V1 (+255) 20308 | -2/Protoforge | Spotted V808-h 20316 | -2/Protoforge | Spotted Decapitator 20316 | -2/Protoforge | Spotted V899-l 20316 | -2/Protoforge | Spotted V651-k 20325 | -2/Protoforge | Attached CPS modules to Immortal 20338 | -2/Protoforge | Destroyed Immortal 20349 | -2/Protoforge | Found Prototype Device 20349 | -2/Protoforge | Identified Cep. Antimissile System 20351 | -2/Protoforge | Found Prototype Device 20351 | -2/Protoforge | Identified Exp. Cloaking Device 20367 | -2/Protoforge | Found Cep. Gyrokinetic System 20368 | -2/Protoforge | Lost 4 parts (1p2n1u) 20374 | -2/Protoforge | Found Cep. Gyrokinetic System 20377 | -2/Protoforge | Found Cep. Gyrokinetic System 20408 | -2/Protoforge | Destroyed V651-k 20419 | -2/Protoforge | Attached CPS modules to V899-l 20423 | -2/Protoforge | Destroyed V899-l 20424 | -2/Protoforge | Found Cep. Combat Aerolev Unit 20426 | -2/Protoforge | Found Cep. Combat Aerolev Unit 20434 | -2/Protoforge | Found Cep. Combat Aerolev Unit 20445 | -2/Protoforge | Found Prototype Power Core 20445 | -2/Protoforge | Identified Cep. Zero-point Core 20454 | -2/Protoforge | Spotted Decapitator 20466 | -2/Protoforge | Build established: Scavenger-Sprinter 20481 | -2/Protoforge | Destroyed Decapitator 20493 | -2/Protoforge | Forge Plexus network access discovered 20503 | -2/Protoforge | Spotted Decapitator 20505 | -2/Protoforge | Destroyed Decapitator 20509 | -2/Protoforge | Destroyed Decapitator 20530 | -2/Protoforge | Destroyed 7 combat bots 20536 | -2/Protoforge | Spotted V529-l 20536 | -2/Protoforge | Spotted V720-j 20544 | -2/Protoforge | Spotted V153-r 20567 | -2/Protoforge | Attached CPS modules to V720-j 20572 | -2/Protoforge | Attached CPS modules to V153-r 20594 | -2/Protoforge | Found Faulty Cep. Zero-point Core 20603 | -2/Protoforge | Destroyed V720-j 20609 | -2/Protoforge | Destroyed V153-r 20612 | -2/Protoforge | System corruption reached 30% 20612 | -2/Protoforge | Found Cep. Gyrokinetic System 20618 | -2/Protoforge | Found Cep. Gyrokinetic System 20629 | -2/Protoforge | Found Cep. Gyrokinetic System 20645 | -2/Protoforge | Found Cep. Combat Aerolev Unit 20654 | -2/Protoforge | Found Cep. Gyrokinetic System 20660 | -2/Protoforge | Found Prototype Device 20660 | -2/Protoforge | Identified Exp. Thermal Defense Suite 20674 | -2/Protoforge | Attached CPS modules to V036-p 20680 | -2/Protoforge | Found Prototype Device 20680 | -2/Protoforge | Identified Exp. Shock Absorption System 20688 | -2/Protoforge | Found Faulty Cep. Zero-point Core 20693 | -2/Protoforge | Found Corrupted Cep. Zero-point Core 20704 | -2/Protoforge | X0-1V1 sent hostile Thug (x4) 20716 | -2/Protoforge | Found Cep. Gyrokinetic System 20729 | -2/Protoforge | Spotted Decapitator 20729 | -2/Protoforge | Spotted Decapitator 20735 | -2/Protoforge | Destroyed Decapitator 20738 | -2/Protoforge | Destroyed Decapitator 20753 | -2/Protoforge | Found Cep. Antigrav Storage Unit 20762 | -2/Protoforge | Spotted V540-m 20770 | -2/Protoforge | Attached CPS modules to V540-m 20775 | -2/Protoforge | Destroyed V540-m 20777 | -2/Protoforge | Found Cep. Antimissile System 20780 | -2/Protoforge | Found Prototype Device 20780 | -2/Protoforge | Identified Adv. Particle Accelerator 20783 | -2/Protoforge | Found Cep. Zero-point Core 20793 | -2/Protoforge | Spotted V889-n 20793 | -2/Protoforge | Spotted V998-b 20812 | -2/Protoforge | Destroyed V998-b 20816 | -2/Protoforge | Destroyed V889-n 20818 | -2/Protoforge | Found Cep. Gyrokinetic System 20821 | -2/Protoforge | Found Cep. Gyrokinetic System 20822 | -2/Protoforge | Found Cep. Gyrokinetic System 20828 | -2/Protoforge | Found Cep. Combat Aerolev Unit 20832 | -2/Protoforge | Found Cep. Combat Aerolev Unit 20839 | -2/Protoforge | Found Exp. Armor Integrity Analyzer 20908 | -2/Protoforge | Found Femtoactuators 20911 | -2/Protoforge | Found Faulty Cep. Melee Reflex Suite 20917 | -2/Protoforge | Found Faulty Femtoactuators 20918 | -2/Protoforge | Found Cep. Weapon Articulator 20939 | -2/Protoforge | Build established: Scavenger-Mutant 20951 | -2/Protoforge | Found Faulty Cep. Melee Reflex Suite 20960 | -2/Protoforge | Found Cep. Weapon Articulator 21204 | -2/Protoforge | Spotted AP7-3 21206 | -2/Protoforge | Spotted AP7-3 21258 | -2/Protoforge | Destroyed AP7-3 21264 | -2/Protoforge | Destroyed AP7-3 21290 | -2/Protoforge | Found Cep. Cloak Mesh 21292 | -2/Protoforge | Found Cep. Cloak Mesh 21325 | -2/Protoforge | Additional patrols dispatched to research labs 21327 | -2/Protoforge | Found Cep. Nanofilaments [Tensile] 21327 | -2/Protoforge | Installed Cep. Nanofilaments [Tensile], 3 resistances modified: KI +20%, TH -10%, I +20% 21334 | -2/Protoforge | Found Transdimensional Reconstructor 21376 | -2/Protoforge | Core integrity restored by X0-1V1 (+390) 21416 | -2/Protoforge | Spotted V488-x 21416 | -2/Protoforge | Spotted V212-h 21416 | -2/Protoforge | Spotted V035-d 21425 | -2/Protoforge | Found Faulty Cep. Energy Mantle 21428 | -2/Protoforge | Found Faulty Cep. Energy Mantle 21485 | -2/Protoforge | Spotted Executioner 21549 | -2/Protoforge | Spotted Hotshot 21551 | -2/Protoforge | Spotted Hotshot 21552 | -2/Protoforge | Spotted Hotshot 21566 | -2/Protoforge | Entered Access 21566 | -1/Access | Evolved 2 slots: Power x1, Utility x1 21588 | -1/Access | X0-1V1 sent you to a vault 21643 | -1/Access | Spotted B-99 Colossus 21650 | -1/Access | Spotted Striker 21652 | -1/Access | Spotted Striker 21668 | -1/Access | Destroyed Striker 21669 | -1/Access | Destroyed Striker 21764 | -1/Access | Spotted B-99 Colossus 21975 | -1/Access | X0-1V1 activates XOMVISION 22030 | -1/Access | Spotted Executioner 22030 | -1/Access | Spotted Executioner 22030 | -1/Access | Spotted B-99 Colossus 22030 | -1/Access | Destroyed Executioner 22043 | -1/Access | Weapon slot count temporarily expanded by X0-1V1 (+1) 22044 | -1/Access | Attached CPS modules to Executioner 22059 | -1/Access | X0-1V1 destroyed Energy Cycler 22059 | -1/Access | Energy Cycler disabled 22066 | -1/Access | First assault squad dispatched 22137 | -1/Access | Attached CPS modules to B-99 Colossus 22146 | -1/Access | Destroyed B-99 Colossus 22150 | -1/Access | Found Unknown Protection 22150 | -1/Access | Identified Hvy. Reflective Plating 22158 | -1/Access | Spotted Striker 22181 | -1/Access | Spotted Striker 22181 | -1/Access | Destroyed Striker 22383 | -1/Access | High security lockdown imminent 22401 | -1/Access | X0-1V1 sent allied Fireman (x5) 22434 | -1/Access | Destroyed 10 combat bots 22440 | -1/Access | Discovered new exit (range 13) 22441 | -1/Access | Spotted B-99 Colossus 22441 | -1/Access | Spotted B-99 Colossus 22446 | -1/Access | Entered Command 22499 | -1/Command | X0-1V1 activates XOMVISION 22527 | -1/Command | Spotted M Guard 22528 | -1/Command | Spotted M Guard 22531 | -1/Command | Spotted Combat Programmer 22536 | -1/Command | Spotted Combat Programmer 22538 | -1/Command | Destroyed Combat Programmer 22543 | -1/Command | Destroyed Combat Programmer 22549 | -1/Command | Destroyed M Guard 22562 | -1/Command | Destroyed M Guard 22562 | -1/Command | All MAIN.C guards destroyed 22565 | -1/Command | Found Prototype Device 22565 | -1/Command | Identified Thermal Barrier 22570 | -1/Command | Found Prototype Protection 22570 | -1/Command | Identified Hvy. Regenerative Plating 22591 | -1/Command | Met MAIN.C 22596 | -1/Command | 0b10 Conduit disabled 22609 | -1/Command | Destroyed MAIN.C Shell 22610 | -1/Command | MAIN.C activated Command garrisons 22623 | -1/Command | Destroyed MAIN.C 22624 | -1/Command | Discovered new exit (range 34) 22624 | -1/Command | Discovered new exit (range 89) 22624 | -1/Command | Extracted map data and part IDs from MAIN.C's data core 22626 | -1/Command | Found Thermal Barrier 22632 | -1/Command | Found Zero-point Reactor 22681 | -1/Command | Spotted Executioner 22739 | -1/Command | Destroyed Executioner 22955 | -1/Command | X0-1V1 sent you to a vault 23033 | -1/Command | X0-1V1 activates XOMVISION 23380 | -1/Command | Found Exp. Core Analyzer 23429 | -1/Command | Warped through subspace to slip node 23429 | -1/Command | Discovered new exit (range 4) 23433 | -1/Command | Entered Access_0 23434 | -1/Access_0 | Met Architect 23442 | -1/Access_0 | Destroyed A8 23448 | -1/Access_0 | Architect warped through subspace 23479 | -1/Access_0 | Architect warped through subspace 23510 | -1/Access_0 | X0-1V1 whisked you away to safety 23527 | -1/Access_0 | Destroyed 12 combat bots 23533 | -1/Access_0 | A6 warped into view 23536 | -1/Access_0 | Weapon slot count temporarily expanded by X0-1V1 (+1) 23544 | -1/Access_0 | Destroyed A6 23554 | -1/Access_0 | Architect warped through subspace 23594 | -1/Access_0 | Architect warped through subspace 23632 | -1/Access_0 | Architect warped through subspace 23639 | -1/Access_0 | Identified exit to Surface 23639 | -1/Access_0 | X0-1V1 revealed exit location to -0/Surface 23651 | -1/Access_0 | Destroyed A2 23654 | -1/Access_0 | Found Exp. Phase Shifter 23656 | -1/Access_0 | Found Prototype Device 23656 | -1/Access_0 | Identified ST Field Compressor 23660 | -1/Access_0 | Extracted Singularity Gate Test 138-C access codes from A2's data core 23686 | -1/Access_0 | Architect warped through subspace 23690 | -1/Access_0 | Singularity Gate disabled 23709 | -1/Access_0 | X0-1V1 sent hostile X-82 Rainmaker (x2) 23712 | -1/Access_0 | X0-1V1 sent allied Cetus Guard (x2) 23719 | -1/Access_0 | A5 warped into view 23735 | -1/Access_0 | Destroyed A5 23740 | -1/Access_0 | Subspace Access Node disabled 23750 | -1/Access_0 | X0-1V1 vaporized surrounding terrain (radius 17) 23761 | -1/Access_0 | Subspace Access Node disabled 23790 | -1/Access_0 | X0-1V1 sent allied Quarantine Guard (x3) 23797 | -1/Access_0 | Subspace Access Node disabled 23812 | -1/Access_0 | A4 warped into view 23822 | -1/Access_0 | Destroyed A4 23823 | -1/Access_0 | Found Sigix Corpse 23833 | -1/Access_0 | Architect warped through subspace 23840 | -1/Access_0 | Subspace Access Node disabled 23861 | -1/Access_0 | Destroyed Architect 23862 | -1/Access_0 | Extracted unknown sensor trigger ID from Architect's data core 23862 | -1/Access_0 | Found Hpw. Transdimensional Reconstructor 23865 | -1/Access_0 | Found Prototype Protection 23865 | -1/Access_0 | Identified Centrium Linked Plating 23867 | -1/Access_0 | Found Prototype Hackware 23867 | -1/Access_0 | Identified Architect God Chip D 23885 | -1/Access_0 | Core integrity restored by X0-1V1 (+297) 23904 | -1/Access_0 | X0-1V1 activates XOMVISION 23967 | -1/Access_0 | Destroyed 9 combat bots 24044 | -1/Access_0 | A3 warped into view 24048 | -1/Access_0 | Destroyed A3 24059 | -1/Access_0 | Found Prototype Ballistic Gun 24059 | -1/Access_0 | Identified A3's Sniper Rifle 24081 | -1/Access_0 | Warped through subspace to slip node 24082 | -1/Access_0 | Warped through subspace to slip node 24086 | *** | Establishing 0b11! Last Messages --------------- >>Record "Log L.QL67S5A3" [REDACTED] >>Record "Log L.OZLVE4D5" [REDACTED] >>Record "Log L.XLJZXWC5" [REDACTED] >>Record "Log L.UHGC2ASH" Despite Warlord's aggressive stance, the Derelict army has been surprisingly slow to make its move. They're doing almost too much planning and preparation... >>Record "Log L.SWO95LD1" I knew there was someone else operating in the shadows! To think it was MAIN.C's own creator! What a stroke of luck that LRC-V3 would be instrumental in exposing him, likely an even more dangerous foe than MAIN.C. This revelation alone was enough to justify releasing it. >>Record "Log L.Y1U23ASU" [REDACTED] >>Record "Log L.RSL58V7F" [REDACTED] 24081_ Warped through subspace, drawn to slip node. Map ----- +----------------------------------------------------+ | | | | | | | | | | | | | | | | | | | | | | | | | | | | | | | | | ?????????????????????????????????????????????????? | | ?????????????????????????????????????????????????? | | ?????????????????????????????????????????????????? | | ?????????????????????????????????????????????????? | | ?????????????????????????????????????????????????? | | ?????????????????????????????????????????????????? | | ????????????????????????###??????????????????????? | | ???????????????????????## ##?????????????????????? | | ???????????????????????# #?????????????????????? | | ???????????????????????# @ #?????????????????????? | | ??????????????????????## #?????????????????????? | | ??????????????????????# #?????????????????????? | | ??????????????????????# ##?????????????????????? | | ??????????????????????## #?????????????????????? | | ??????????????????????# #?????????????????????? | | ??????????????????????# ##?????????????????????? | | ??????????????????????# < #?????????????????????? | | ??????????????????????# ##?????????????????????? | | ??????????????????????## #??????????????????????? | | ???????????????????????####??????????????????????? | | ?????????????????????????????????????????????????? | | ?????????????????????????????????????????????????? | | ?????????????????????????????????????????????????? | | ?????????????????????????????????????????????????? | | ?????????????????????????????????????????????????? | | ?????????????????????????????????????????????????? | | ?????????????????????????????????????????????????? | | ?????????????????????????????????????????????????? | | ?????????????????????????????????????????????????? | | ?????????????????????????????????????????????????? | | ?????????????????????????????????????????????????? | | ?????????????????????????????????????????????????? | | ?????????????????????????????????????????????????? | | ?????????????????????????????????????????????????? | +----------------------------------------------------+ Best States ------------- Heat Dissipation 172 Energy Generation 99 Energy Capacity 2100 Matter Stores 1000 Matter Capacity 1000 Sight Range 29 Robot Scan Range 16 Terrain Scan Range 16 Terrain Scan Density 10 Jamming Range 16 Cloak Strength 9 Additional Mass Support 12 Armor Coverage 825 Resistance: KI 50 Resistance: TH 57 Resistance: EM 100 Resistance: I 20 Propulsion Shielding 66 Utility Shielding 90 Point Defense Rating 480 Melee Speed Boost 50 Phase Shifting 20 Evasion (%) 95 Targeting Accuracy 30 Melee Accuracy 12 Core Analysis 12 Armor Integrity Analysis 50 Recoil Reduction 4 Matter Filtering 50 Offensive Hacking 24 Item Schematics ----------------- Assault Drone Bay | -4/Zhirov | Free Exp. Heat Sink | -4/Zhirov | Free Exp. Optical Array | -4/Zhirov | Free Imp. Arc Thrower | -4/Zhirov | Free Com. Particle Reactor | -3/Testing | Archive Proton Burst Cannon | -3/Testing | Archive Adv. Variable Charge Gun | -3/Testing | Archive Cld. Field Propulsion Drive | -3/Testing | Archive Imp. KE Penetrator | -3/Testing | Archive Exp. Field Recycling Unit | -3/Testing | Archive Cld. Gravmag System | -3/Testing | Archive Cld. Antigrav System | -3/Testing | Archive Exp. Target Analyzer | -3/Testing | Archive Exp. Thermal Shield | -3/Testing | Archive Vibroblade | -3/Testing | Archive Cld. Plasma Rifle | -3/Testing | Archive Imp. Diametric Drive | -3/Testing | Archive Centrium Greatsword | -3/Testing | Archive Lrn. Phase Cannon | -2/Quarantine | Archive Impact Mace | -2/Quarantine | Archive Exp. Power Amplifier | -2/Quarantine | Archive Com. Mass Driver | -2/Quarantine | Archive Electron Diverter | -2/Quarantine | Archive Imp. Matter Neutralizer | -2/Quarantine | Archive System Purifier | -2/Quarantine | Archive Adv. Energy Well | -2/Protoforge | Archive Adv. Remote Shield | -2/Protoforge | Archive Exp. Cesium-ion Thruster | -2/Protoforge | Archive Hvy. Proton Cannon | -2/Protoforge | Archive Exp. Matter Compressor | -2/Protoforge | Archive Exp. Reaction Control System | -2/Protoforge | Archive Exp. Biometal Medium Treads | -2/Protoforge | Archive Enh. Coil Gun | -2/Protoforge | Archive Robot Schematics ------------------ P-80 Master | -3/Testing | Archive O-32 Director | -3/Testing | Archive B-74 Champion | -3/Testing | Archive A-27 Freighter | -3/Testing | Archive R-10 Processor | -2/Quarantine | Archive R-06 Scavenger | -2/Protoforge | Archive Fabricated ------------ Cmb. Linear Gravjet | x2 | -4/Factory | Preloaded Repaired ---------- Centrium Light Armor Plating | 6% | -3/Research Centrium Heavy Armor Plating | 48% | -2/Quarantine Studied --------- Linear Gravjet | -4/Factory | Hacked Cmb. Antigrav System | -3/Research | Hacked Cmb. Linear Gravjet | -2/Quarantine | Hacked Imp. Antigrav System | -2/Quarantine | Hacked Alien Tech Used ----------------- Integrated Reactor Subatomic Replicator Phase Redirector Sigix Broadsword Concept Nanofilaments [Tensile] Transdimensional Reconstructor High-powered Transdimensional Reconstructor Achievements -------------- None Challenges ------------ None Game ------ Seed NovaGravmagLance Manual? 0 Play Time 05:44:08 Cumulative 1313.4 hours Start 2026.06.29 @ 16:53:47 End 2026.06.29 @ 23:07:24 Sessions 1 Manual Loads 0 Difficulty Rogue Special Mode None Game No. 411 Rogue 409 Adventurer 2 Explorer 0 Win Type 1 Total 112 Types 33/26/26/2/1/1/17/2/1/3 Lore% 98 Gallery% 92 Achievement% 91 Wizard Run 0 Options --------- Layout 0 ASCII 0 Keyboard 1 Movement Numpad Keybinds 0 Fullscreen 1 Font 24/Smallcaps Map View 76x50 Zoom Use 0% Tactical HUD 1 Map Filters NONE Filters NONE Steam 1 RUN: db3b81e6-b595-4bc6-8e3c-8f577baa12ff